Workbook

Sheet bracing
B1: Version: 1.0. | Q1: © 2016 Damian Janicki
E2: YourSpreadsheets™ Top Floor, Made up 52 Marcus Hill, London www.YourSpreadsheets.co.uk Tel: 020 7542 8734 | P2: TEST PROJECT
W3: Revision | Z3: A
W4: Page: | Z4: 12
P5: Job No: | S5: 22813 | W5: Date: | Z5: =TODAY() -> 2016-08-31
C6: Member: | E6: BRACING EXAMPLE | P6: Prepared By: | S6: DJ | W6: Checked By: | Z6: DJ
C8: BASIC DATA: | Q8: DIAGRAM: | AE8: Bracing type: | AG8: Factor for effective length: | AH8: 0.7 | AJ8: Steel section type: | AN8: Steel design strength per limiting thickness:
C9: Bracing type: | J9: Single diagonal | AE9: Single diagonal | AF9: (SD) | AH9: 0.85 | AJ9: Flat bars | AK9: fb | AO9: fy | AQ9: fu
C10: Steel section type: | J10: CHS (hot rolled) | AE10: Cross bracing (tension only) | AF10: (X) | AH10: 1 | AJ10: Equal Angles (UKA) | AK10: EA | AO10: t<16 | AP10: 16<t<40 | AQ10: t<=3 | AR10: 3<t<=100
C11: Steel grade: | J11: S355 H | AE11: Horizontal K-bracing | AF11: (HK) | AH11: 1.2 | AJ11: Unequal Angles (UKA) | AK11: UA | AM11: Grade (hollow sections) hot rolled and cold formed | AN11: S235 H | AO11: 235 | AP11: 225 | AQ11: 360 | AR11: 360
C12: Elastic modulus of steel 'E' [GPa] = | N12: 205 | AE12: Inverted V-bracing | AF12: (VK) | AH12: 1.5 | AJ12: CHS (hot rolled) | AK12: CHS | AN12: S275 H | AO12: 275 | AP12: 265 | AQ12: 430 | AR12: 410
C13: Number of stories = | N13: six | AE13: Selected: | AF13: =INDEX(AF9:AF12,MATCH($J$9,AE9:AE12,0)) -> (SD) | AH13: 2 | AJ13: RHS (hot rolled) | AK13: RHS | AN13: S355 H | AO13: 355 | AP13: 345 | AQ13: 510 | AR13: 470
C14: Bay length 'wbay' [m] = | N14: 3 | AJ14: SHS (hot rolled) | AK14: SHS | AN14: S275 NH/NLH | AO14: 275 | AP14: 265 | AQ14: 370 | AR14: 370
C15: Amplification factor for sway-sensitive structures 'kamp' = | N15: 1 | AJ15: CHS (cold formed) | AK15: CHS | AN15: S355 NH/NLH | AO15: 355 | AP15: 345 | AQ15: 470 | AR15: 470
C16: Effective length parameter 'k' [m] = | N16: 1 | AJ16: RHS (cold formed) | AK16: RHS | AN16: S420 NH/NLH | AO16: 420 | AP16: 400 | AQ16: 520 | AR16: 520 | AS16: row number
C17: Area of holes in tension members 'Aholes' [mm2] = | N17: 452.2 | AJ17: SHS (cold formed) | AK17: SHS | AN17: S460 NH/NLH | AO17: 460 | AP17: 440 | AQ17: 540 | AR17: 540 | AS17: 7
C18: =IF(OR(AND(OR(AK18=AK9,AK18=AK10,AK18=AK11),MATCH(J11,AN11:AN25,0)<=$AS$17),AND(AK18<>AK9,AK18<>AK10,AK18<>AK11,MATCH(J11,AN11:AN25,0)>$AS$17)),"Incorrect steel grade selected","") ->  | AJ18: selected: | AK18: =INDEX(AK9:AK17,MATCH($J$10,AJ9:AJ17,0)) -> CHS | AM18: Grade (hot roller sections) | AN18: S235 | AO18: 235 | AP18: 225 | AQ18: 360 | AR18: 360
C19: STOREY DATA: | AN19: S275 | AO19: 275 | AP19: 265 | AQ19: 430 | AR19: 410
C20: Storey: | F20: 1 | G20: 2 | H20: 3 | I20: 4 | J20: 5 | K20: 6 | L20: 7 | M20: 8 | N20: 9 | O20: 10 | AN20: S355 | AO20: 355 | AP20: 345 | AQ20: 510 | AR20: 470
C21: Height 'h' [m] | F21: 4 | G21: 4 | H21: 3 | I21: 3 | J21: 3 | K21: 3 | L21: 3 | M21: 3 | N21: 3 | O21: 3 | AE21: Number of stories: | AH21: Pass options: | AN21: S450 | AO21: 450 | AP21: 430 | AQ21: 550 | AR21: 550
C22: Load 'FH' [kN] | F22: 30 | G22: 20 | H22: =G22 -> 20 | I22: 20 | J22: 20 | K22: 20 | L22: 20 | M22: 20 | N22: 20 | O22: 20 | AE22: one | AH22: OK
C23: Dim 'a' [m] | F23: 2 | G23: =F23 -> 2 | H23: =G23 -> 2 | I23: 2 | J23: 2 | K23: 2 | L23: 2 | M23: 2 | N23: 2 | O23: 2 | AE23: two | AH23: FAIL
C24: Dim 'b' [m] | F24: =IF($AF$13=$AF$11,4-F23,3-F23) -> 1 | G24: =IF($AF$13=$AF$11,4-G23,3-G23) -> 1 | H24: =IF($AF$13=$AF$11,H21-H23,3-H23) -> 1 | I24: 1 | J24: 1 | K24: 1 | L24: 1 | M24: 1 | N24: 1 | O24: 1 | AE24: three | AH24: Cl. 4
C25: Height 'H' [m] | F25: 4 | G25: =SUM(F21:G21) -> 8 | H25: =SUM(F21:H21) -> 11 | I25: =SUM(F21:I21) -> 14 | J25: =SUM(F21:J21) -> 17 | K25: =SUM(F21:K21) -> 20 | L25: =SUM(F21:L21) -> 23 | M25: =SUM(F21:M21) -> 26 | N25: =SUM(F21:N21) -> 29 | O25: =SUM(F21:O21) -> 32 | AE25: four
F26: Horizontal load is treated as ultimate and reversible | AE26: five | AH26: Elastic modulus of steel:
C27: REACTIONS: | AE27: six | AH27: =N12*10^3 -> 205000
C28: Sum of all horizontal loads 'FH_total' [kN] = | N28: =SUM(OFFSET($F$22,0,0,1,$AF$32)) -> 130 | AE28: seven
C29: Horizontal reaction at point A 'RA_hor' [kN] = | N29: =AF35 -> 0 | AE29: eigth
C30: Vertical reaction at point A 'RA_ver' [kN] = | N30: =-AF36 -> -506.6666667 | AE30: nine
C31: Horizontal reaction at point B 'RB_hor' [kN] = | N31: =AF39 -> -130 | AE31: ten
C32: Vertical reaction at point B 'RB_ver' [kN] = | N32: =AF40 -> 506.6666667 | AE32: selected: | AF32: =MATCH($N$13,$AE$22:$AE$31,0) -> 6
F33: For clarity reactions are given for +ve load rather than reversible
AE34: Reactions at A:
AE35: Horizontal | AF35: =-IF(AF13=AF9,0,IF(AF13=AF10,(AF50*3/AF44),IF(AF13=AF11,(AF52*3/AF48),(AF51*AF45/AF47)))) -> 0 | AG35: kN
AE36: Vertical | AF36: =IF(AF32<2,PRODUCT($F$22,$F$25),IF(AF32<3,SUMPRODUCT($F$22:$G$22,$F$25:$G$25),IF(AF32<4,SUMPRODUCT($F$22:$H$22,$F$25:$H$25),IF(AF32<5,SUMPRODUCT($F$22:$I$22,$F$25:$I$25),IF(AF32<6,SUMPRODUCT($F$22:$J$22,$F$25:$J$25),IF(AF32<7,SUMPRODUCT($F$22:$K$22,$F$25:$K$25),IF(AF32<8,SUMPRODUCT($F$22:$L$22,$F$25:$L$25),IF(AF32<9,SUMPRODUCT($F$22:$M$22,$F$25:$M$25),IF(AF32<10,SUMPRODUCT($F$22:$N$22,$F$25:$N$25),IF(AF32<11,SUMPRODUCT($F$22:$O$22,$F$25:$O$25)))))))))))/3 -> 506.6666667 | AG36: kN
C38: BRACING MEMBER DESIGN: | AE38: Reactions at B:
C39: STOREY | D39: Bracing member section size | G39: Net area [cm2] | H39: Slenderness | I39: Tension check | M39: Compression check | W39: Section check | AB39: RESULT | AE39: Horizontal | AF39: =-IF(AF13=AF9,(AF50*3/AF44),IF(AF13=AF10,0,IF(AF13=AF11,0,(AF52*AF46/AF48)))) -> -130 | AG39: kN | AU39: Area (cm2) | AV39: rmin (cm) | AW39: Cumulative force (kN) | AX39: Nominal yield strength fy (N/mm2) | AY39: Nominal ultimate tensial strength fu (N/mm2) | AZ39: Design tension plastic resistance of gross section Nt,Rd (kN) | BA39: Design ultimate tension resistance of net section Nu,Rd (kN) | BB39: Compression resistance Nc,Rd (kN) | BC39: Ieff(Second moment of area along YY)(cm^4)
I40: =IF($N$15<>1,"Amplified tension force [kN]","Tension force [kN]") -> Tension force [kN] | K40: Member capacity [kN] | M40: Eff. length [m] | N40: =IF($N$15<>1,"Amplified compression force [kN]","Compression force [kN]") -> Compression force [kN] | P40: λbar | Q40: Buckling curve | R40: Imperf. factor | S40: Red. factor φ | T40: Red. factor χ | U40: Compression resistance [kN] | W40: Value ε | X40: =IF(OR($J$10=$AJ$12,$J$10=$AJ$15),"d/t ratio","Flange ratio") -> d/t ratio | Y40: Web ratio | Z40: Ratio limit | AA40: Section class | AE40: Vertical | AF40: =AF36 -> 506.6666667 | AG40: kN
AE42: Calculations:
AE43: Storey | AF43: 1 | AG43: 2 | AH43: 3 | AI43: 4 | AJ43: 5 | AK43: 6 | AL43: 7 | AM43: 8 | AN43: 9 | AO43: 10
C44: 1 | D44: 101.6 x 10 | G44: =MAX(0,AU44-$N$17/100) -> 24.278 | H44: =$M$44*100/AV44 -> 153.3742331 | I44: =$N$15*IF($AF$13=$AF$9,(AW44/(3/AF44)),IF($AF$13=$AF$10,(AW44/(3/AF44)),IF($AF$13=$AF$11,(AW44*MAX(AF47,AF48)/3),IF($AF$13=$AF$12,(AW44*MAX(AF47,AF48)/3))))) -> 216.6666667 | K44: =MIN(AZ44,BA44) -> 933.5994545 | M44: =(IF($AF$13=$AF$9,AF44,IF($AF$13=$AF$10,AF44,IF($AF$13=$AF$11,MAX(AF47,AF48),IF($AF$13=$AF$12,MAX(AF47,AF48))))))*$N$16 -> 5 | N44: =IF($AF$13=$AF$9,$N$15*(AW44/(3/$AF$44)),IF($AF$13=$AF$10,"n/a",IF($AF$13=$AF$11,$N$15*(AW44*MAX($AF$47,$AF$48)/3),IF($AF$13=$AF$12,$N$15*(AW44*MAX($AF$47,$AF$48)/3))))) -> 216.6666667 | P44: =IF(OR($AA44=1,$AA44=2,$AA44=3),(($M44*100/$AV44)/$AM56),((($M44*100/$AV44)/$AM56)*($G44/$AU44)^0.5)) -> 2.007553175 | Q44: =IF($AF$13=$AF$10,"n/a",IF(OR($J$10=$AJ$12,$J$10=$AJ$13,$J$10=$AJ$14),IF(OR($AX44=235,$AX44=275,$AX44=355,$AX44=420),"a","a0"),IF(OR($J$10=$AJ$15,$J$10=$AJ$16,$J$10=$AJ$17),"c"))) -> a | R44: =IF($AF$13=$AF$10,"n/a",INDEX($AN$60:$AO$62,MATCH($Q44,$AN$60:$AN$62,0),2)) -> 0.21 | S44: =IF($AF$13=$AF$10,"n/a",0.5*(1+($R44*($P44-0.2)+$P44^2))) -> 2.704927958 | T44: =IF($AF$13=$AF$10,"n/a",MIN(1,1/($S44+($S44^2-$P44^2)^0.5))) -> 0.2213485587 | U44: =IF($AF$13=$AF$10,"n/a",IF(OR($AA44=1,$AA44=2,$AA44=3),(IF($T44>1,1,$T44)*$AU44*$AX44/10),(IF($T44>1,1,$T44)*$G44*$AX44/11))) -> 226.3067664 | W44: =(235/$AX44)^0.5 -> 0.8136165135 | X44: =IF($J$10=$AJ$12,INDEX(tchshf,MATCH(D44,lchshf,0),7),IF($J$10=$AJ$13,INDEX(trhs,MATCH(D44,RHS,0),8),IF($J$10=$AJ$14,INDEX(tshs,MATCH(D44,SHS,0),7),IF($J$10=$AJ$15,INDEX(tchscf,MATCH(D44,lchscf,0),7),IF($J$10=$AJ$16,INDEX(trhscf,MATCH(D44,lrhscf,0),8),IF($J$10=$AJ$17,INDEX(tshscf,MATCH(D44,lshscf,0),7),"n/a")))))) -> 10.2 | Y44: =IF($J$10=$AJ$13,INDEX(trhs,MATCH(D44,RHS,0),7),IF($J$10=$AJ$14,INDEX(tshs,MATCH(D44,SHS,0),7),IF($J$10=$AJ$16,INDEX(trhscf,MATCH(D44,lrhscf,0),7),IF($J$10=$AJ$17,INDEX(tshscf,MATCH(D44,lshscf,0),7),"n/a")))) -> n/a | Z44: =IF(OR($J$10=$AJ$12,$J$10=$AJ$15),INDEX(AJ56:AL56,1,MIN(3,AA44)),INDEX(AG56:AI56,1,MIN(3,AA44))) -> 33.09859155 | AA44: =IF($AF$13=$AF$10,"n/a",IF(OR($J$10=$AJ$13,$J$10=$AJ$14,$J$10=$AJ$16,$J$10=$AJ$17),IF(MAX($X44,$Y44)<$AG56,1,IF(MAX($X44,$Y44)<$AH56,2,IF(MAX($X44,$Y44)<$AI56,3,4))),IF(OR($J$10=$AJ$12,$J$10=$AJ$15),IF(MAX($X44,$Y44)<$AJ56,1,IF(MAX($X44,$Y44)<$AK56,2,IF(MAX($X44,$Y44)<$AL56,3,4)))))) -> 1 | AB44: =IF(AND(C44<=$AF$32,$AF$13<>$AF$10,$AA44=4),$AH$24,IF(C44<=$AF$32,IF(OR(I44>K44,AND($AF$13<>$AF$10,N44>U44)),$AH$23,$AH$22))) -> OK | AE44: Max length of bracing(for X & SD only) | AF44: =(4^2+3^2)^0.5 -> 5 | AG44: =(4^2+3^2)^0.5 -> 5 | AH44: =(H21^2+3^2)^0.5 -> 4.242640687 | AI44: 4.242640687 | AJ44: 4.242640687 | AK44: 4.242640687 | AL44: 4.242640687 | AM44: 4.242640687 | AN44: 4.242640687 | AO44: 4.242640687 | AP44: mtr. | AU44: =IF($J$10=$AJ$10,INDEX(teq,MATCH(D44,eq,0),6),IF($J$10=$AJ$12,INDEX(tchshf,MATCH(D44,lchshf,0),6),IF($J$10=$AJ$13,INDEX(trhs,MATCH(D44,RHS,0),6),IF($J$10=$AJ$14,INDEX(tshs,MATCH(D44,SHS,0),6),IF($J$10=$AJ$11,INDEX(tuneq,MATCH(D44,uneq,0),6),IF($J$10=$AJ$9,INDEX(tflatb,MATCH(D44,flatb,0),4),IF($J$10=$AJ$15,INDEX(tchscf,MATCH(D44,lchscf,0),6),IF($J$10=$AJ$16,INDEX(trhscf,MATCH(D44,lrhscf,0),6),IF($J$10=$AJ$17,INDEX(tshscf,MATCH(D44,lshscf,0),6)))))))))) -> 28.8 | AV44: =IF($J$10=$AJ$10,INDEX(teq,MATCH(D44,eq,0),11),IF($J$10=$AJ$12,INDEX(tchshf,MATCH(D44,lchshf,0),9),IF($J$10=$AJ$13,INDEX(trhs,MATCH(D44,RHS,0),12),IF($J$10=$AJ$14,INDEX(tshs,MATCH(D44,SHS,0),9),IF($J$10=$AJ$11,INDEX(tuneq,MATCH(D44,uneq,0),14),IF($J$10=$AJ$9,INDEX(tflatb,MATCH(D44,flatb,0),6),IF($J$10=$AJ$15,INDEX(tchscf,MATCH(D44,lchscf,0),9),IF($J$10=$AJ$16,INDEX(trhscf,MATCH(D44,lrhscf,0),12),IF($J$10=$AJ$17,INDEX(tshscf,MATCH(D44,lshscf,0),9)))))))))) -> 3.26 | AW44: =IF($AF$32<2,$F$22,IF($AF$32<3,SUM($F$22:$G$22),IF($AF$32<4,SUM($F$22:$H$22),IF($AF$32<5,SUM($F$22:$I$22),IF($AF$32<6,SUM($F$22:$J$22),IF($AF$32<7,SUM($F$22:$K$22),IF($AF$32<8,SUM($F$22:$L$22),IF($AF$32<9,SUM($F$22:$M$22),IF($AF$32<10,SUM($F$22:$N$22),IF($AF$32<11,SUM($F$22:$O$22))))))))))) -> 130 | AX44: =INDEX($AO$11:$AP$25,MATCH($J$11,$AN$11:$AN$25,0),INDEX(datasheet!$A$17:$A$1224,MATCH($D44,datasheet!$C$17:$C$1224,0))) -> 355 | AY44: =INDEX($AQ$11:$AR$25,MATCH($J$11,$AN$11:$AN$25,0),INDEX(datasheet!$B$17:$B$1224,MATCH($D44,datasheet!$C$17:$C$1224,0))) -> 470 | AZ44: =($AX44*$AU44/10) -> 1022.4 | BA44: =(0.9*$AY44*$G44/11) -> 933.5994545 | BB44: =IF(OR($AA44=1,$AA44=2,$AA44=3),($AU44*$AX44/10),($G44*$AX44/10)) -> 1022.4 | BC44: =IF($J$10=$AJ$10,INDEX(teq,MATCH(D44,eq,0),8),IF($J$10=$AJ$12,INDEX(tchshf,MATCH(D44,lchshf,0),8),IF($J$10=$AJ$13,INDEX(trhs,MATCH(D44,RHS,0),10),IF($J$10=$AJ$14,INDEX(tshs,MATCH(D44,SHS,0),8),IF($J$10=$AJ$11,INDEX(tuneq,MATCH(D44,uneq,0),10),IF($J$10=$AJ$9,INDEX(tflatb,MATCH(D44,flatb,0),4),IF($J$10=$AJ$15,INDEX(tchscf,MATCH(D44,lchscf,0),8),IF($J$10=$AJ$16,INDEX(trhscf,MATCH(D44,lrhscf,0),10),IF($J$10=$AJ$17,INDEX(tshscf,MATCH(D44,lshscf,0),8)))))))))) -> 305
C45: 2 | D45: =D44 -> 101.6 x 10 | G45: =MAX(0,AU45-$N$17/100) -> 24.278 | H45: =$M$45*100/AV45 -> 153.3742331 | I45: =$N$15*IF($AF$13=$AF$9,(AW45/(3/$AG$44)),IF($AF$13=$AF$10,(AW45/(3/$AG$44)),IF($AF$13=$AF$11,(AW45*MAX($AG$47,$AG$48)/3),IF($AF$13=$AF$12,(AW45*MAX($AG$47,$AG$48)/3))))) -> 166.6666667 | K45: 933.5994545 | M45: =(IF($AF$13=$AF$9,AG44,IF($AF$13=$AF$10,AG44,IF($AF$13=$AF$11,MAX(AG47,AG48),IF($AF$13=$AF$12,MAX(AG47,AG48))))))*$N$16 -> 5 | N45: =IF($AF$13=$AF$9,$N$15*(AW45/(3/$AG$44)),IF($AF$13=$AF$10,"n/a",IF($AF$13=$AF$11,$N$15*(AW45*MAX($AG$47,$AG$48)/3),IF($AF$13=$AF$12,$N$15*(AW45*MAX($AG$47,$AG$48)/3))))) -> 166.6666667 | P45: 2.007553175 | Q45: =IF($AF$13=$AF$10,"n/a",IF(OR($J$10=$AJ$12,$J$10=$AJ$13,$J$10=$AJ$14),IF(OR($AX45=235,$AX45=275,$AX45=355,$AX45=420),"a","a0"),IF(OR($J$10=$AJ$15,$J$10=$AJ$16,$J$10=$AJ$17),"c"))) -> a | R45: =IF($AF$13=$AF$10,"n/a",INDEX($AN$60:$AO$62,MATCH($Q45,$AN$60:$AN$62,0),2)) -> 0.21 | S45: =IF($AF$13=$AF$10,"n/a",0.5*(1+($R45*($P45-0.2)+$P45^2))) -> 2.704927958 | T45: =IF($AF$13=$AF$10,"n/a",MIN(1,1/($S45+($S45^2-$P45^2)^0.5))) -> 0.2213485587 | U45: =IF($AF$13=$AF$10,"n/a",IF(OR($AA45=1,$AA45=2,$AA45=3),(IF($T45>1,1,$T45)*$AU45*$AX45/10),(IF($T45>1,1,$T45)*$G45*$AX45/11))) -> 226.3067664 | W45: 0.8136165135 | X45: 10.2 | Y45: n/a | Z45: =IF(OR($J$10=$AJ$12,$J$10=$AJ$15),INDEX(AJ57:AL57,1,MIN(3,AA45)),INDEX(AG57:AI57,1,MIN(3,AA45))) -> 33.09859155 | AA45: 1 | AB45: =IF(AND(C45<=$AF$32,$AF$13<>$AF$10,$AA45=4),$AH$24,IF(C45<=$AF$32,IF(OR(I45>K45,AND($AF$13<>$AF$10,N45>U45)),$AH$23,$AH$22))) -> OK | AE45: Dimension from base to knee | AF45: =$F$23 -> 2 | AG45: =$G$23 -> 2 | AH45: =$H$23 -> 2 | AI45: =$I$23 -> 2 | AJ45: =$J$23 -> 2 | AK45: =$K$23 -> 2 | AL45: =$L$23 -> 2 | AM45: =$M$23 -> 2 | AN45: =$N$23 -> 2 | AO45: =$O$23 -> 2 | AP45: mtr. | AQ45: for K bracing only | AU45: 28.8 | AV45: 3.26 | AW45: =IF($AF$32<2,$F$22,IF($AF$32<3,SUM($F$22:$G$22),IF($AF$32<4,SUM($F$22:$H$22),IF($AF$32<5,SUM($F$22:$I$22),IF($AF$32<6,SUM($F$22:$J$22),IF($AF$32<7,SUM($F$22:$K$22),IF($AF$32<8,SUM($F$22:$L$22),IF($AF$32<9,SUM($F$22:$M$22),IF($AF$32<10,SUM($F$22:$N$22),IF($AF$32<11,SUM($F$22:$O$22)))))))))))-$F$22 -> 100 | AX45: =INDEX($AO$11:$AP$25,MATCH($J$11,$AN$11:$AN$25,0),INDEX(datasheet!$A$17:$A$1224,MATCH($D45,datasheet!$C$17:$C$1224,0))) -> 355 | AY45: =INDEX($AQ$11:$AR$25,MATCH($J$11,$AN$11:$AN$25,0),INDEX(datasheet!$B$17:$B$1224,MATCH($D45,datasheet!$C$17:$C$1224,0))) -> 470 | AZ45: 1022.4 | BA45: 933.5994545 | BB45: 1022.4 | BC45: 305
C46: 3 | D46: =D45 -> 101.6 x 10 | G46: 24.278 | H46: =$M$46*100/AV46 -> 130.1423524 | I46: =$N$15*IF($AF$13=$AF$9,(AW46/(3/$AH$44)),IF($AF$13=$AF$10,(AW46/(3/$AH$44)),IF($AF$13=$AF$11,(AW46*MAX($AH$47,$AH$48)/3),IF($AF$13=$AF$12,(AW46*MAX($AH$47,$AH$48)/3))))) -> 113.137085 | K46: 933.5994545 | M46: =(IF($AF$13=$AF$9,AH44,IF($AF$13=$AF$10,AH44,IF($AF$13=$AF$11,MAX(AH47,AH48),IF($AF$13=$AF$12,MAX(AH47,AH48))))))*$N$16 -> 4.242640687 | N46: =IF($AF$13=$AF$9,$N$15*(AW46/(3/$AH$44)),IF($AF$13=$AF$10,"n/a",IF($AF$13=$AF$11,$N$15*(AW46*MAX($AH$47,$AH$48)/3),IF($AF$13=$AF$12,$N$15*(AW46*MAX($AH$47,$AH$48)/3))))) -> 113.137085 | P46: 1.703465356 | Q46: a | R46: 0.21 | S46: 2.108760972 | T46: 0.2983495702 | U46: 305.0326006 | W46: 0.8136165135 | X46: 10.2 | Y46: n/a | Z46: 33.09859155 | AA46: 1 | AB46: OK | AE46: Dimension from knee to top of frame | AF46: =$F$24 -> 1 | AG46: =$G$24 -> 1 | AH46: =$H$24 -> 1 | AI46: =$I$24 -> 1 | AJ46: =$J$24 -> 1 | AK46: =$K$24 -> 1 | AL46: =$L$24 -> 1 | AM46: =$M$24 -> 1 | AN46: =$N$24 -> 1 | AO46: =$O$24 -> 1 | AP46: mtr. | AQ46: for K bracing only | AU46: 28.8 | AV46: 3.26 | AW46: =IF($AF$32<2,$F$22,IF($AF$32<3,SUM($F$22:$G$22),IF($AF$32<4,SUM($F$22:$H$22),IF($AF$32<5,SUM($F$22:$I$22),IF($AF$32<6,SUM($F$22:$J$22),IF($AF$32<7,SUM($F$22:$K$22),IF($AF$32<8,SUM($F$22:$L$22),IF($AF$32<9,SUM($F$22:$M$22),IF($AF$32<10,SUM($F$22:$N$22),IF($AF$32<11,SUM($F$22:$O$22)))))))))))-SUM($F$22:$G$22) -> 80 | AX46: =INDEX($AO$11:$AP$25,MATCH($J$11,$AN$11:$AN$25,0),INDEX(datasheet!$A$17:$A$1224,MATCH($D46,datasheet!$C$17:$C$1224,0))) -> 355 | AY46: =INDEX($AQ$11:$AR$25,MATCH($J$11,$AN$11:$AN$25,0),INDEX(datasheet!$B$17:$B$1224,MATCH($D46,datasheet!$C$17:$C$1224,0))) -> 470 | AZ46: 1022.4 | BA46: 933.5994545 | BB46: 1022.4 | BC46: 305
C47: 4 | D47: 101.6 x 10 | G47: 24.278 | H47: =$M$47*100/AV47 -> 130.1423524 | I47: =$N$15*IF($AF$13=$AF$9,(AW47/(3/$AI$44)),IF($AF$13=$AF$10,(AW47/(3/$AI$44)),IF($AF$13=$AF$11,(AW47*MAX($AI$47,$AI$48)/3),IF($AF$13=$AF$12,(AW47*MAX($AI$47,$AI$48)/3))))) -> 84.85281374 | K47: 933.5994545 | M47: =(IF($AF$13=$AF$9,AI44,IF($AF$13=$AF$10,AI44,IF($AF$13=$AF$11,MAX(AI47,AI48),IF($AF$13=$AF$12,MAX(AI47,AI48))))))*$N$16 -> 4.242640687 | N47: =IF($AF$13=$AF$9,$N$15*(AW47/(3/$AI$44)),IF($AF$13=$AF$10,"n/a",IF($AF$13=$AF$11,$N$15*(AW47*MAX($AI$47,$AI$48)/3),IF($AF$13=$AF$12,$N$15*(AW47*MAX($AI$47,$AI$48)/3))))) -> 84.85281374 | P47: 1.703465356 | Q47: a | R47: 0.21 | S47: 2.108760972 | T47: 0.2983495702 | U47: 305.0326006 | W47: 0.8136165135 | X47: 10.2 | Y47: n/a | Z47: 33.09859155 | AA47: 1 | AB47: OK | AE47: Length of top brace | AF47: =IF($AF$13=$AF$11,(($AF$45^2+3^2)^0.5),(($AF$45^2+4^2)^0.5)) -> 4.472135955 | AG47: =IF($AF$13=$AF$11,(($AG$45^2+3^2)^0.5),(($AG$45^2+4^2)^0.5)) -> 4.472135955 | AH47: =IF($AF$13=$AF$11,(($AH$45^2+3^2)^0.5),(($AH$45^2+$H$21^2)^0.5)) -> 3.605551275 | AI47: =IF($AF$13=$AF$11,(($AI$45^2+3^2)^0.5),(($AI$45^2+$I$21^2)^0.5)) -> 3.605551275 | AJ47: =IF($AF$13=$AF$11,(($AJ$45^2+3^2)^0.5),(($AJ$45^2+$J$21^2)^0.5)) -> 3.605551275 | AK47: =IF($AF$13=$AF$11,(($AK$45^2+3^2)^0.5),(($AK$45^2+$K$21^2)^0.5)) -> 3.605551275 | AL47: =IF($AF$13=$AF$11,(($AL$45^2+3^2)^0.5),(($AL$45^2+$L$21^2)^0.5)) -> 3.605551275 | AM47: =IF($AF$13=$AF$11,(($AM$45^2+3^2)^0.5),(($AM$45^2+$M$21^2)^0.5)) -> 3.605551275 | AN47: =IF($AF$13=$AF$11,(($AN$45^2+3^2)^0.5),(($AN$45^2+$N$21^2)^0.5)) -> 3.605551275 | AO47: =IF($AF$13=$AF$11,(($AO$45^2+3^2)^0.5),(($AO$45^2+$O$21^2)^0.5)) -> 3.605551275 | AP47: mtr. | AQ47: for K bracing only | AU47: 28.8 | AV47: 3.26 | AW47: =IF($AF$32<2,$F$22,IF($AF$32<3,SUM($F$22:$G$22),IF($AF$32<4,SUM($F$22:$H$22),IF($AF$32<5,SUM($F$22:$I$22),IF($AF$32<6,SUM($F$22:$J$22),IF($AF$32<7,SUM($F$22:$K$22),IF($AF$32<8,SUM($F$22:$L$22),IF($AF$32<9,SUM($F$22:$M$22),IF($AF$32<10,SUM($F$22:$N$22),IF($AF$32<11,SUM($F$22:$O$22)))))))))))-SUM($F$22:$H$22) -> 60 | AX47: =INDEX($AO$11:$AP$25,MATCH($J$11,$AN$11:$AN$25,0),INDEX(datasheet!$A$17:$A$1224,MATCH($D47,datasheet!$C$17:$C$1224,0))) -> 355 | AY47: =INDEX($AQ$11:$AR$25,MATCH($J$11,$AN$11:$AN$25,0),INDEX(datasheet!$B$17:$B$1224,MATCH($D47,datasheet!$C$17:$C$1224,0))) -> 470 | AZ47: 1022.4 | BA47: 933.5994545 | BB47: 1022.4 | BC47: 305
C48: 5 | D48: =D47 -> 101.6 x 10 | G48: 24.278 | H48: =$M$48*100/AV48 -> 130.1423524 | I48: =$N$15*IF($AF$13=$AF$9,(AW48/(3/$AJ$44)),IF($AF$13=$AF$10,(AW48/(3/$AJ$44)),IF($AF$13=$AF$11,(AW48*MAX($AJ$47,$AJ$48)/3),IF($AF$13=$AF$12,(AW48*MAX($AJ$47,$AJ$48)/3))))) -> 56.56854249 | K48: 933.5994545 | M48: =(IF($AF$13=$AF$9,AJ44,IF($AF$13=$AF$10,AJ44,IF($AF$13=$AF$11,MAX(AJ47,AJ48),IF($AF$13=$AF$12,MAX(AJ47,AJ48))))))*$N$16 -> 4.242640687 | N48: =IF($AF$13=$AF$9,$N$15*(AW48/(3/$AJ$44)),IF($AF$13=$AF$10,"n/a",IF($AF$13=$AF$11,$N$15*(AW48*MAX($AJ$47,$AJ$48)/3),IF($AF$13=$AF$12,$N$15*(AW48*MAX($AJ$47,$AJ$48)/3))))) -> 56.56854249 | P48: 1.703465356 | Q48: a | R48: 0.21 | S48: 2.108760972 | T48: 0.2983495702 | U48: 305.0326006 | W48: 0.8136165135 | X48: 10.2 | Y48: n/a | Z48: 33.09859155 | AA48: 1 | AB48: OK | AE48: Length of bottom brace | AF48: =IF($AF$13=$AF$11,($AF$46^2+3^2)^0.5,(($AF$46^2+4^2)^0.5)) -> 4.123105626 | AG48: =IF($AF$13=$AF$11,($AG$46^2+3^2)^0.5,(($AG$46^2+4^2)^0.5)) -> 4.123105626 | AH48: =IF($AF$13=$AF$11,($AH$46^2+3^2)^0.5,(($AH$46^2+$H$21^2)^0.5)) -> 3.16227766 | AI48: =IF($AF$13=$AF$11,($AI$46^2+3^2)^0.5,(($AI$46^2+$I$21^2)^0.5)) -> 3.16227766 | AJ48: =IF($AF$13=$AF$11,($AJ$46^2+3^2)^0.5,(($AJ$46^2+$J$21^2)^0.5)) -> 3.16227766 | AK48: =IF($AF$13=$AF$11,($AK$46^2+3^2)^0.5,(($AK$46^2+$K$21^2)^0.5)) -> 3.16227766 | AL48: =IF($AF$13=$AF$11,($AL$46^2+3^2)^0.5,(($AL$46^2+$L$21^2)^0.5)) -> 3.16227766 | AM48: =IF($AF$13=$AF$11,($AM$46^2+3^2)^0.5,(($AM$46^2+$M$21^2)^0.5)) -> 3.16227766 | AN48: =IF($AF$13=$AF$11,($AN$46^2+3^2)^0.5,(($AN$46^2+$N$21^2)^0.5)) -> 3.16227766 | AO48: =IF($AF$13=$AF$11,($AO$46^2+3^2)^0.5,(($AO$46^2+$O$21^2)^0.5)) -> 3.16227766 | AP48: mtr. | AQ48: for K bracing only | AU48: 28.8 | AV48: 3.26 | AW48: =IF($AF$32<2,$F$22,IF($AF$32<3,SUM($F$22:$G$22),IF($AF$32<4,SUM($F$22:$H$22),IF($AF$32<5,SUM($F$22:$I$22),IF($AF$32<6,SUM($F$22:$J$22),IF($AF$32<7,SUM($F$22:$K$22),IF($AF$32<8,SUM($F$22:$L$22),IF($AF$32<9,SUM($F$22:$M$22),IF($AF$32<10,SUM($F$22:$N$22),IF($AF$32<11,SUM($F$22:$O$22)))))))))))-SUM($F$22:$I$22) -> 40 | AX48: =INDEX($AO$11:$AP$25,MATCH($J$11,$AN$11:$AN$25,0),INDEX(datasheet!$A$17:$A$1224,MATCH($D48,datasheet!$C$17:$C$1224,0))) -> 355 | AY48: =INDEX($AQ$11:$AR$25,MATCH($J$11,$AN$11:$AN$25,0),INDEX(datasheet!$B$17:$B$1224,MATCH($D48,datasheet!$C$17:$C$1224,0))) -> 470 | AZ48: 1022.4 | BA48: 933.5994545 | BB48: 1022.4 | BC48: 305
C49: 6 | D49: 101.6 x 10 | G49: 24.278 | H49: =$M$49*100/AV49 -> 130.1423524 | I49: =$N$15*IF($AF$13=$AF$9,(AW49/(3/$AK$44)),IF($AF$13=$AF$10,(AW49/(3/$AK$44)),IF($AF$13=$AF$11,(AW49*MAX($AK$47,$AK$48)/3),IF($AF$13=$AF$12,(AW49*MAX($AK$47,$AK$48)/3))))) -> 28.28427125 | K49: 933.5994545 | M49: =(IF($AF$13=$AF$9,AK44,IF($AF$13=$AF$10,AK44,IF($AF$13=$AF$11,MAX(AK47,AK48),IF($AF$13=$AF$12,MAX(AK47,AK48))))))*$N$16 -> 4.242640687 | N49: =IF($AF$13=$AF$9,$N$15*(AW49/(3/$AK$44)),IF($AF$13=$AF$10,"n/a",IF($AF$13=$AF$11,$N$15*(AW49*MAX($AK$47,$AK$48)/3),IF($AF$13=$AF$12,$N$15*(AW49*MAX($AK$47,$AK$48)/3))))) -> 28.28427125 | P49: 1.703465356 | Q49: a | R49: 0.21 | S49: 2.108760972 | T49: 0.2983495702 | U49: 305.0326006 | W49: 0.8136165135 | X49: 10.2 | Y49: n/a | Z49: 33.09859155 | AA49: 1 | AB49: OK | AE49: Cumulative total load | AF49: =AW44 -> 130 | AG49: =AW45 -> 100 | AH49: =AW46 -> 80 | AI49: =AW47 -> 60 | AJ49: =AW48 -> 40 | AK49: =AW49 -> 20 | AL49: =AW50 -> 0 | AM49: =AW51 -> -20 | AN49: =AW52 -> -40 | AO49: =AW53 -> -60 | AP49: kN | AU49: 28.8 | AV49: 3.26 | AW49: =IF($AF$32<2,$F$22,IF($AF$32<3,SUM($F$22:$G$22),IF($AF$32<4,SUM($F$22:$H$22),IF($AF$32<5,SUM($F$22:$I$22),IF($AF$32<6,SUM($F$22:$J$22),IF($AF$32<7,SUM($F$22:$K$22),IF($AF$32<8,SUM($F$22:$L$22),IF($AF$32<9,SUM($F$22:$M$22),IF($AF$32<10,SUM($F$22:$N$22),IF($AF$32<11,SUM($F$22:$O$22)))))))))))-SUM($F$22:$J$22) -> 20 | AX49: =INDEX($AO$11:$AP$25,MATCH($J$11,$AN$11:$AN$25,0),INDEX(datasheet!$A$17:$A$1224,MATCH($D49,datasheet!$C$17:$C$1224,0))) -> 355 | AY49: =INDEX($AQ$11:$AR$25,MATCH($J$11,$AN$11:$AN$25,0),INDEX(datasheet!$B$17:$B$1224,MATCH($D49,datasheet!$C$17:$C$1224,0))) -> 470 | AZ49: 1022.4 | BA49: 933.5994545 | BB49: 1022.4 | BC49: 305
C50: 7 | D50: 101.6 x 10 | G50: 24.278 | H50: =$M$50*100/AV50 -> 130.1423524 | I50: =$N$15*IF($AF$13=$AF$9,(AW50/(3/$AL$44)),IF($AF$13=$AF$10,(AW50/(3/$AL$44)),IF($AF$13=$AF$11,(AW50*MAX($AL$47,$AL$48)/3),IF($AF$13=$AF$12,(AW50*MAX($AL$47,$AL$48)/3))))) -> 0 | K50: 933.5994545 | M50: =(IF($AF$13=$AF$9,AL44,IF($AF$13=$AF$10,AL44,IF($AF$13=$AF$11,MAX(AL47,AL48),IF($AF$13=$AF$12,MAX(AL47,AL48))))))*$N$16 -> 4.242640687 | N50: =IF($AF$13=$AF$9,$N$15*(AW50/(3/$AL$44)),IF($AF$13=$AF$10,"n/a",IF($AF$13=$AF$11,$N$15*(AW50*MAX($AL$47,$AL$48)/3),IF($AF$13=$AF$12,$N$15*(AW50*MAX($AL$47,$AL$48)/3))))) -> 0 | P50: 1.703465356 | Q50: a | R50: 0.21 | S50: 2.108760972 | T50: 0.2983495702 | U50: 305.0326006 | W50: 0.8136165135 | X50: 10.2 | Y50: n/a | Z50: 33.09859155 | AA50: 1 | AB50: FALSE | AE50: Maximum force on bracing member (X,SD only) | AF50: =AF49/(3/AF44) -> 216.6666667 | AG50: 166.6666667 | AH50: 113.137085 | AI50: 84.85281374 | AJ50: 56.56854249 | AK50: 28.28427125 | AL50: 0 | AM50: -28.28427125 | AN50: -56.56854249 | AO50: -84.85281374 | AP50: kN | AU50: 28.8 | AV50: 3.26 | AW50: =IF($AF$32<2,$F$22,IF($AF$32<3,SUM($F$22:$G$22),IF($AF$32<4,SUM($F$22:$H$22),IF($AF$32<5,SUM($F$22:$I$22),IF($AF$32<6,SUM($F$22:$J$22),IF($AF$32<7,SUM($F$22:$K$22),IF($AF$32<8,SUM($F$22:$L$22),IF($AF$32<9,SUM($F$22:$M$22),IF($AF$32<10,SUM($F$22:$N$22),IF($AF$32<11,SUM($F$22:$O$22)))))))))))-SUM($F$22:$K$22) -> 0 | AX50: =INDEX($AO$11:$AP$25,MATCH($J$11,$AN$11:$AN$25,0),INDEX(datasheet!$A$17:$A$1224,MATCH($D50,datasheet!$C$17:$C$1224,0))) -> 355 | AY50: =INDEX($AQ$11:$AR$25,MATCH($J$11,$AN$11:$AN$25,0),INDEX(datasheet!$B$17:$B$1224,MATCH($D50,datasheet!$C$17:$C$1224,0))) -> 470 | AZ50: 1022.4 | BA50: 933.5994545 | BB50: 1022.4 | BC50: 305
C51: 8 | D51: 101.6 x 10 | G51: 24.278 | H51: =$M$51*100/AV51 -> 130.1423524 | I51: =$N$15*IF($AF$13=$AF$9,(AW51/(3/$AM$44)),IF($AF$13=$AF$10,(AW51/(3/$AM$44)),IF($AF$13=$AF$11,(AW51*MAX($AM$47,$AM$48)/3),IF($AF$13=$AF$12,(AW51*MAX($AM$47,$AM$48)/3))))) -> -28.28427125 | K51: 933.5994545 | M51: =(IF($AF$13=$AF$9,AM44,IF($AF$13=$AF$10,AM44,IF($AF$13=$AF$11,MAX(AM47,AM48),IF($AF$13=$AF$12,MAX(AM47,AM48))))))*$N$16 -> 4.242640687 | N51: =IF($AF$13=$AF$9,$N$15*(AW51/(3/$AM$44)),IF($AF$13=$AF$10,"n/a",IF($AF$13=$AF$11,$N$15*(AW51*MAX($AM$47,$AM$48)/3),IF($AF$13=$AF$12,$N$15*(AW51*MAX($AM$47,$AM$48)/3))))) -> -28.28427125 | P51: 1.703465356 | Q51: a | R51: 0.21 | S51: 2.108760972 | T51: 0.2983495702 | U51: 305.0326006 | W51: 0.8136165135 | X51: 10.2 | Y51: n/a | Z51: 33.09859155 | AA51: 1 | AB51: FALSE | AE51: Maximum force | AF51: =AF49*AF47/3 -> 193.792558 | AG51: 149.0711985 | AH51: 96.14803401 | AI51: 72.11102551 | AJ51: 48.07401701 | AK51: 24.0370085 | AL51: 0 | AM51: -24.0370085 | AN51: -48.07401701 | AO51: -72.11102551 | AP51: kN | AQ51: =IF(AF13=AF11,"Not applicable","Applicable") -> Applicable | AU51: 28.8 | AV51: 3.26 | AW51: =IF($AF$32<2,$F$22,IF($AF$32<3,SUM($F$22:$G$22),IF($AF$32<4,SUM($F$22:$H$22),IF($AF$32<5,SUM($F$22:$I$22),IF($AF$32<6,SUM($F$22:$J$22),IF($AF$32<7,SUM($F$22:$K$22),IF($AF$32<8,SUM($F$22:$L$22),IF($AF$32<9,SUM($F$22:$M$22),IF($AF$32<10,SUM($F$22:$N$22),IF($AF$32<11,SUM($F$22:$O$22)))))))))))-SUM($F$22:$L$22) -> -20 | AX51: =INDEX($AO$11:$AP$25,MATCH($J$11,$AN$11:$AN$25,0),INDEX(datasheet!$A$17:$A$1224,MATCH($D51,datasheet!$C$17:$C$1224,0))) -> 355 | AY51: =INDEX($AQ$11:$AR$25,MATCH($J$11,$AN$11:$AN$25,0),INDEX(datasheet!$B$17:$B$1224,MATCH($D51,datasheet!$C$17:$C$1224,0))) -> 470 | AZ51: 1022.4 | BA51: 933.5994545 | BB51: 1022.4 | BC51: 305
C52: 9 | D52: 101.6 x 10 | G52: 24.278 | H52: =$M$52*100/AV52 -> 130.1423524 | I52: =$N$15*IF($AF$13=$AF$9,(AW52/(3/$AN$44)),IF($AF$13=$AF$10,(AW52/(3/$AN$44)),IF($AF$13=$AF$11,(AW52*MAX($AN$47,$AN$48)/3),IF($AF$13=$AF$12,(AW52*MAX($AN$47,$AN$48)/3))))) -> -56.56854249 | K52: 933.5994545 | M52: =(IF($AF$13=$AF$9,AN44,IF($AF$13=$AF$10,AN44,IF($AF$13=$AF$11,MAX(AN47,AN48),IF($AF$13=$AF$12,MAX(AN47,AN48))))))*$N$16 -> 4.242640687 | N52: =IF($AF$13=$AF$9,$N$15*(AW52/(3/$AN$44)),IF($AF$13=$AF$10,"n/a",IF($AF$13=$AF$11,$N$15*(AW52*MAX($AN$47,$AN$48)/3),IF($AF$13=$AF$12,$N$15*(AW52*MAX($AN$47,$AN$48)/3))))) -> -56.56854249 | P52: 1.703465356 | Q52: a | R52: 0.21 | S52: 2.108760972 | T52: 0.2983495702 | U52: 305.0326006 | W52: 0.8136165135 | X52: 10.2 | Y52: n/a | Z52: 33.09859155 | AA52: 1 | AB52: FALSE | AE52: Maximum force | AF52: =AF49*AF48/3 -> 178.6679104 | AG52: 137.4368542 | AH52: 84.32740427 | AI52: 63.2455532 | AJ52: 42.16370214 | AK52: 21.08185107 | AL52: 0 | AM52: -21.08185107 | AN52: -42.16370214 | AO52: -63.2455532 | AP52: kN | AQ52: =IF(AF13=AF11,"Not applicable","Applicable") -> Applicable | AU52: 28.8 | AV52: 3.26 | AW52: =IF($AF$32<2,$F$22,IF($AF$32<3,SUM($F$22:$G$22),IF($AF$32<4,SUM($F$22:$H$22),IF($AF$32<5,SUM($F$22:$I$22),IF($AF$32<6,SUM($F$22:$J$22),IF($AF$32<7,SUM($F$22:$K$22),IF($AF$32<8,SUM($F$22:$L$22),IF($AF$32<9,SUM($F$22:$M$22),IF($AF$32<10,SUM($F$22:$N$22),IF($AF$32<11,SUM($F$22:$O$22)))))))))))-SUM($F$22:$M$22) -> -40 | AX52: =INDEX($AO$11:$AP$25,MATCH($J$11,$AN$11:$AN$25,0),INDEX(datasheet!$A$17:$A$1224,MATCH($D52,datasheet!$C$17:$C$1224,0))) -> 355 | AY52: =INDEX($AQ$11:$AR$25,MATCH($J$11,$AN$11:$AN$25,0),INDEX(datasheet!$B$17:$B$1224,MATCH($D52,datasheet!$C$17:$C$1224,0))) -> 470 | AZ52: 1022.4 | BA52: 933.5994545 | BB52: 1022.4 | BC52: 305
C53: 10 | D53: =D52 -> 101.6 x 10 | G53: 24.278 | H53: =$M$53*100/AV53 -> 130.1423524 | I53: =$N$15*IF($AF$13=$AF$9,(AW53/(3/$AO$44)),IF($AF$13=$AF$10,(AW53/(3/$AO$44)),IF($AF$13=$AF$11,(AW53*MAX($AO$47,$AO$48)/3),IF($AF$13=$AF$12,(AW53*MAX($AO$47,$AO$48)/3))))) -> -84.85281374 | K53: 933.5994545 | M53: =(IF($AF$13=$AF$9,AO44,IF($AF$13=$AF$10,AO44,IF($AF$13=$AF$11,MAX(AO47,AO48),IF($AF$13=$AF$12,MAX(AO47,AO48))))))*$N$16 -> 4.242640687 | N53: =IF($AF$13=$AF$9,$N$15*(AW53/(3/$AO$44)),IF($AF$13=$AF$10,"n/a",IF($AF$13=$AF$11,$N$15*(AW53*MAX($AO$47,$AO$48)/3),IF($AF$13=$AF$12,$N$15*(AW53*MAX($AO$47,$AO$48)/3))))) -> -84.85281374 | P53: 1.703465356 | Q53: a | R53: 0.21 | S53: 2.108760972 | T53: 0.2983495702 | U53: 305.0326006 | W53: 0.8136165135 | X53: 10.2 | Y53: n/a | Z53: 33.09859155 | AA53: 1 | AB53: FALSE | AU53: 28.8 | AV53: 3.26 | AW53: =IF($AF$32<2,$F$22,IF($AF$32<3,SUM($F$22:$G$22),IF($AF$32<4,SUM($F$22:$H$22),IF($AF$32<5,SUM($F$22:$I$22),IF($AF$32<6,SUM($F$22:$J$22),IF($AF$32<7,SUM($F$22:$K$22),IF($AF$32<8,SUM($F$22:$L$22),IF($AF$32<9,SUM($F$22:$M$22),IF($AF$32<10,SUM($F$22:$N$22),IF($AF$32<11,SUM($F$22:$O$22)))))))))))-SUM($F$22:$N$22) -> -60 | AX53: =INDEX($AO$11:$AP$25,MATCH($J$11,$AN$11:$AN$25,0),INDEX(datasheet!$A$17:$A$1224,MATCH($D53,datasheet!$C$17:$C$1224,0))) -> 355 | AY53: =INDEX($AQ$11:$AR$25,MATCH($J$11,$AN$11:$AN$25,0),INDEX(datasheet!$B$17:$B$1224,MATCH($D53,datasheet!$C$17:$C$1224,0))) -> 470 | AZ53: 1022.4 | BA53: 933.5994545 | BB53: 1022.4 | BC53: 305
C54: =IF(NOT(ISERROR(MATCH(0,OFFSET(G44,0,0,AF32),0))),"Area of holes is too great for some sections, reduce area of holes or increase section size",IF(NOT(ISERROR(MATCH(AH24,OFFSET(AB44,0,0,AF32),0))),"Some sections are Class 4 slender, these are beyond scope of this spreadsheet",IF(ISERROR(SUM(OFFSET(AB44,0,0,AF32))),"Some sections are incorrect for this steel section type. Re-select",""))) ->  | AG54: RHS/SHS(HF/CF) | AJ54: CHS
C55: NOTES: | AG55: 33e | AH55: 38e | AI55: 42e | AJ55: 50e^2 | AK55: 70e^2 | AL55: 90e^2 | AM55: 93.9e
C56: 1. Class 4 slender sections are beyond scope of this spreadsheet; 2. Bracing is assumed to be central on connecting members, no account is made for moment due to eccentric connection; 3. All connections are pinned. And assumed as Category A to EN 1993-1-8; 4. Members are designed for reversible load. Reactions are given for +ve loads only; 5. Annotations used: Eff. - effective; Imperf. - imperfection; Red. - reduction; Fl. - flange; W. - web; 6. Block tearing failure around bolts in tension members not considered. | AF56: 1 | AG56: =33*$W44 -> 26.84934494 | AH56: =38*$W44 -> 30.91742751 | AI56: =42*$W44 -> 34.17189357 | AJ56: =50*$W44^2 -> 33.09859155 | AK56: =70*$W44^2 -> 46.33802817 | AL56: =90*$W44^2 -> 59.57746479 | AM56: =93.9*$W44 -> 76.39859061
AF57: 2 | AG57: 26.84934494 | AH57: 30.91742751 | AI57: 34.17189357 | AJ57: 33.09859155 | AK57: 46.33802817 | AL57: 59.57746479 | AM57: 76.39859061
AF58: 3 | AG58: 26.84934494 | AH58: 30.91742751 | AI58: 34.17189357 | AJ58: 33.09859155 | AK58: 46.33802817 | AL58: 59.57746479 | AM58: 76.39859061
AF59: 4 | AG59: 26.84934494 | AH59: 30.91742751 | AI59: 34.17189357 | AJ59: 33.09859155 | AK59: 46.33802817 | AL59: 59.57746479 | AM59: 76.39859061
AF60: 5 | AG60: 26.84934494 | AH60: 30.91742751 | AI60: 34.17189357 | AJ60: 33.09859155 | AK60: 46.33802817 | AL60: 59.57746479 | AM60: 76.39859061 | AN60: a | AO60: 0.21
C61: Spreadsheet provided by: www.YourSpreadsheets.co.uk | P61: calculations are based on Eurocode 1993-1-1 (2005) + UK N.A. | AF61: 6 | AG61: 26.84934494 | AH61: 30.91742751 | AI61: 34.17189357 | AJ61: 33.09859155 | AK61: 46.33802817 | AL61: 59.57746479 | AM61: 76.39859061 | AN61: a0 | AO61: 0.13
AF62: 7 | AG62: 26.84934494 | AH62: 30.91742751 | AI62: 34.17189357 | AJ62: 33.09859155 | AK62: 46.33802817 | AL62: 59.57746479 | AM62: 76.39859061 | AN62: c | AO62: 0.49
AF63: 8 | AG63: 26.84934494 | AH63: 30.91742751 | AI63: 34.17189357 | AJ63: 33.09859155 | AK63: 46.33802817 | AL63: 59.57746479 | AM63: 76.39859061
AF64: 9 | AG64: 26.84934494 | AH64: 30.91742751 | AI64: 34.17189357 | AJ64: 33.09859155 | AK64: 46.33802817 | AL64: 59.57746479 | AM64: 76.39859061
AF65: 10 | AG65: 26.84934494 | AH65: 30.91742751 | AI65: 34.17189357 | AJ65: 33.09859155 | AK65: 46.33802817 | AL65: 59.57746479 | AM65: 76.39859061

Sheet datasheet (hidden)
AA6: CHART DATA
C7: Advance® UKA - Equal
D8: Table 1.1.5.1 | AQ8: Constants
AM9: Constants | AQ9: extension | AR9: =0.25+(bracing!AF32/bracing!AF32^2)*(0.2*bracing!AF32-0.2) -> 0.4166666667
D10: DIMENSIONS AND PROPERTIES | AM10: load X coordinates | AN10: =-bracing!N14/2 -> -1.5 | AQ10: text offset | AR10: =0.4+(bracing!AF32/bracing!AF32^2)*(0.5*bracing!AF32-0.5) -> 0.8166666667
C11: Section | E11: Mass | F11: Radius | H11: Area | I11: Distance | J11: Second Moment | M11: Radius | P11: Elastic | Q11: Torsional | R11: Equivalent | AM11: load arrow length | AN11: =bracing!N14/3 -> 1 | AQ11: dim offset | AR11: =2+(bracing!AF32/bracing!AF32^2)*(1.5*bracing!AF32-1.5) -> 3.25
C12: Designation | E12: per | H12: of | I12: to | J12: of Area | M12: of Gyration | P12: Modulus | Q12: Constant | R12: Slenderness | AM12: load text offset | AN12: =AN10+(1/bracing!AF32) -> -1.333333333 | AQ12: bracing label offset | AR12: =AR11+(bracing!N14*bracing!AF32/bracing!AF32^2)*(2-1/bracing!AF32*1.5) -> 4.125
C13: Size | D13: Thickness | E13: Metre | F13: Root | G13: Toe | H13: Section | I13: Centre of | J13: Axis | K13: Axis | L13: Axis | M13: Axis | N13: Axis | O13: Axis | P13: Axis | R13: Coefficient | AR13: =AR11+(bracing!N14*1/bracing!AF32)*(2.5-1/bracing!AF32*1.5) -> 4.375
I14: Gravity | J14: x-x, y-y | K14: u-u | L14: v-v | M14: x-x, y-y | N14: u-u | O14: v-v | P14: x-x, y-y | AB14: X | AC14: Y | AF14: X | AG14: Y | AJ14: X | AK14: Y | AN14: X | AO14: Y | AR14: X | AS14: Y | AV14: X | AW14: Y | BA14: X | BB14: Y
C15: A x A | D15: t | F15: r1 | G15: r2 | I15: c | Q15: J | R15: Φa | AA15: Columns | AE15: Bracing No 1 | AI15: Bracing No 2 | AM15: Loads | AQ15: Dimension line 1 | AU15: Dimension line 2 | AZ15: Dimension labels
A16: fy | B16: fu | C16: mm | D16: mm | E16: kg/m | F16: mm | G16: mm | H16: cm2 | I16: cm | J16: cm4 | K16: cm4 | L16: cm4 | M16: cm | N16: cm | O16: cm | P16: cm3 | Q16: cm4 | AA16: Left | AB16: 0 | AC16: 0 | AE16: 1 | AF16: 0 | AG16: =IF(bracing!$AF$13=bracing!$AF$9,4,IF(bracing!$AF$13=bracing!$AF$10,4,IF(bracing!$AF$13=bracing!$AF$11,4,0))) -> 4 | AI16: 1 | AJ16: =IF(bracing!$AF$13=bracing!$AF$9,0,IF(bracing!$AF$13=bracing!$AF$10,0,IF(bracing!$AF$13=bracing!$AF$11,0,bracing!F23))) -> 0 | AK16: =IF(bracing!$AF$13=bracing!$AF$9,0,IF(bracing!$AF$13=bracing!$AF$10,0,IF(bracing!$AF$13=bracing!$AF$11,0,bracing!F21))) -> 0 | AM16: 1 | AN16: =$AN$10 -> -1.5 | AO16: =IF(AM16<=bracing!$AF$32,INDEX(bracing!$F$25:$O$25,1,AM16),4) -> 4 | AR16: =bracing!N14+AR11 -> 6.25 | AS16: =-AR9 -> -0.4166666667 | AV16: =AR16+AR11 -> 9.5 | AW16: =AS16 -> -0.4166666667 | AZ16: =bracing!N14&"m" -> 3m | BA16: =bracing!N14/2 -> 1.5 | BB16: =AW26+$AR$10 -> -2.433333333
A17: 1 | B17: 2 | C17: 90 x 90 x 7 | D17: 7 | E17: 9.61 | F17: 11 | G17: 5.5 | H17: 12.2 | I17: 2.45 | J17: 92.6 | K17: 147 | L17: 38.3 | M17: 2.75 | N17: 3.46 | O17: 1.77 | P17: 14.1 | Q17: 2.24 | R17: 3.8 | AB17: 0 | AC17: =INDEX(bracing!F25:O25,1,bracing!AF32) -> 20 | AF17: =IF(bracing!$AF$13=bracing!$AF$9,3,IF(bracing!$AF$13=bracing!$AF$10,3,IF(bracing!$AF$13=bracing!$AF$11,3,INDEX(bracing!$F$23:$O$23,1,AE16)))) -> 3 | AG17: =IF(bracing!$AF$13=bracing!$AF$9,0,IF(bracing!$AF$13=bracing!$AF$10,0,IF(bracing!$AF$13=bracing!$AF$11,INDEX(bracing!$F$23:$O$23,1,AE16),4))) -> 0 | AJ17: =IF(bracing!$AF$13=bracing!$AF$9,0,IF(bracing!$AF$13=bracing!$AF$10,bracing!N14,IF(bracing!$AF$13=bracing!$AF$11,bracing!N14,bracing!N14))) -> 0 | AK17: =IF(bracing!$AF$13=bracing!$AF$9,0,IF(bracing!$AF$13=bracing!$AF$10,bracing!F21,IF(bracing!$AF$13=bracing!$AF$11,bracing!F23,0))) -> 0 | AN17: =$AN$10+$AN$11 -> -0.5 | AO17: =AO16 -> 4 | AR17: =AR16 -> 6.25 | AS17: =INDEX(bracing!F25:O25,1,bracing!AF32)+AR9 -> 20.41666667 | AV17: =AV16 -> 9.5 | AW17: =AS17 -> 20.41666667
A18: 1 | B18: 2 | C18: 90 x 90 x 8 | D18: 8 | E18: 10.9 | F18: 11 | G18: 5.5 | H18: 13.9 | I18: 2.5 | J18: 104 | K18: 166 | L18: 43.1 | M18: 2.74 | N18: 3.45 | O18: 1.76 | P18: 16.1 | Q18: 3.28 | R18: 3.33 | AZ18: =INDEX(bracing!F25:O25,1,bracing!AF32)&"m" -> 20m | BA18: =AV16-AR10 -> 8.683333333 | BB18: =INDEX(bracing!F25:O25,1,bracing!AF32)/2 -> 10
A19: 1 | B19: 2 | C19: 90 x 90 x 10 | D19: 10 | E19: 13.4 | F19: 11 | G19: 5.5 | H19: 17.1 | I19: 2.58 | J19: 127 | K19: 201 | L19: 52.6 | M19: 2.72 | N19: 3.42 | O19: 1.75 | P19: 19.8 | Q19: 6.2 | R19: 2.64 | AA19: Right | AB19: =3 -> 3 | AC19: =AC16 -> 0 | AE19: 2 | AF19: =IF($AE19<=bracing!$AF$32,IF(bracing!$AF$13=bracing!$AF$9,0,IF(bracing!$AF$13=bracing!$AF$10,0,IF(bracing!$AF$13=bracing!$AF$11,0,0))),0) -> 0 | AG19: =IF($AE19<=bracing!$AF$32,IF(bracing!$AF$13=bracing!$AF$9,INDEX(bracing!$F$25:$O$25,1,AE19),IF(bracing!$AF$13=bracing!$AF$10,INDEX(bracing!$F$25:$O$25,1,AE19),IF(bracing!$AF$13=bracing!$AF$11,INDEX(bracing!$F$25:$O$25,1,AE19),INDEX(bracing!$F$25:$O$25,1,AE19-1)))),0) -> 8 | AI19: 2 | AJ19: =IF($AI19<=bracing!$AF$32,IF(bracing!$AF$13=bracing!$AF$9,0,IF(bracing!$AF$13=bracing!$AF$10,0,IF(bracing!$AF$13=bracing!$AF$11,0,INDEX(bracing!$F$23:$O$23,1,AI19)))),0) -> 0 | AK19: =IF($AI19<=bracing!$AF$32,IF(bracing!$AF$13=bracing!$AF$9,0,IF(bracing!$AF$13=bracing!$AF$10,INDEX(bracing!$F$25:$O$25,1,AI19-1),IF(bracing!$AF$13=bracing!$AF$11,INDEX(bracing!$F$25:$O$25,1,AI19-1),INDEX(bracing!$F$25:$O$25,1,AI19)))),0) -> 0 | AM19: 2 | AN19: =$AN$10 -> -1.5 | AO19: =IF(AM19<=bracing!$AF$32,INDEX(bracing!$F$25:$O$25,1,AM19),4) -> 8 | AQ19: 0 | AR19: =$AR$16-$AR$9 -> 5.833333333 | AS19: 0 | AV19: =$AV$16-$AR$9 -> 9.083333333 | AW19: 0
A20: 1 | B20: 2 | C20: 90 x 90 x 12 | D20: 12 | E20: 15.9 | F20: 11 | G20: 5.5 | H20: 20.3 | I20: 2.66 | J20: 148 | K20: 235 | L20: 62 | M20: 2.7 | N20: 3.4 | O20: 1.75 | P20: 23.4 | Q20: 10.46 | R20: 2.17 | AB20: =AB19 -> 3 | AC20: =AC17 -> 20 | AF20: =IF($AE19<=bracing!$AF$32,IF(bracing!$AF$13=bracing!$AF$9,3,IF(bracing!$AF$13=bracing!$AF$10,3,IF(bracing!$AF$13=bracing!$AF$11,3,INDEX(bracing!$F$23:$O$23,1,AE19)))),0) -> 3 | AG20: =IF($AE19<=bracing!$AF$32,IF(bracing!$AF$13=bracing!$AF$9,INDEX(bracing!$F$25:$O$25,1,AE19-1),IF(bracing!$AF$13=bracing!$AF$10,INDEX(bracing!$F$25:$O$25,1,AE19-1),IF(bracing!$AF$13=bracing!$AF$11,INDEX(bracing!$F$25:$O$25,1,AE19-1)+INDEX(bracing!$F$23:$O$23,1,AE19),INDEX(bracing!$F$25:$O$25,1,AE19)))),0) -> 4 | AJ20: =IF($AI19<=bracing!$AF$32,IF(bracing!$AF$13=bracing!$AF$9,0,IF(bracing!$AF$13=bracing!$AF$10,3,IF(bracing!$AF$13=bracing!$AF$11,3,3))),0) -> 0 | AK20: =IF($AI19<=bracing!$AF$32,IF(bracing!$AF$13=bracing!$AF$9,0,IF(bracing!$AF$13=bracing!$AF$10,INDEX(bracing!$F$25:$O$25,1,AI19),IF(bracing!$AF$13=bracing!$AF$11,INDEX(bracing!$F$25:$O$25,1,AI19-1)+INDEX(bracing!$F$23:$O$23,1,AI19),INDEX(bracing!$F$25:$O$25,1,AI19-1)))),0) -> 0 | AN20: =$AN$10+$AN$11 -> -0.5 | AO20: =AO19 -> 8 | AR20: =$AR$16+$AR$9 -> 6.666666667 | AS20: 0 | AV20: =$AV$16+$AR$9 -> 9.916666667 | AW20: 0 | AY20: 1 | AZ20: =IF(AY20<=bracing!$AF$32,INDEX(bracing!$F$21:$O$21,1,AY20)&"m","") -> 4m | BA20: =AR16-$AR$10 -> 5.433333333 | BB20: =IF(AY20<=bracing!$AF$32,INDEX(bracing!$F$25:$O$25,1,AY20)-INDEX(bracing!$F$21:$O$21,1,AY20)/2,0) -> 2
A21: 1 | B21: 2 | C21: 100 x 100 x 8 | D21: 8 | E21: 12.2 | F21: 12 | G21: 6 | H21: 15.5 | I21: 2.74 | J21: 145 | K21: 230 | L21: 59.9 | M21: 3.06 | N21: 3.85 | O21: 1.96 | P21: 20 | Q21: 3.68 | R21: 3.7
A22: 1 | B22: 2 | C22: 100 x 100 x 10 | D22: 10 | E22: 15 | F22: 12 | G22: 6 | H22: 19.2 | I22: 2.82 | J22: 177 | K22: 280 | L22: 73 | M22: 3.04 | N22: 3.83 | O22: 1.95 | P22: 24.6 | Q22: 6.97 | R22: 2.94 | AA22: Beams per storey | AE22: 3 | AF22: =IF($AE22<=bracing!$AF$32,IF(bracing!$AF$13=bracing!$AF$9,0,IF(bracing!$AF$13=bracing!$AF$10,0,IF(bracing!$AF$13=bracing!$AF$11,0,0))),0) -> 0 | AG22: =IF($AE22<=bracing!$AF$32,IF(bracing!$AF$13=bracing!$AF$9,INDEX(bracing!$F$25:$O$25,1,AE22),IF(bracing!$AF$13=bracing!$AF$10,INDEX(bracing!$F$25:$O$25,1,AE22),IF(bracing!$AF$13=bracing!$AF$11,INDEX(bracing!$F$25:$O$25,1,AE22),INDEX(bracing!$F$25:$O$25,1,AE22-1)))),0) -> 11 | AI22: 3 | AJ22: =IF($AI22<=bracing!$AF$32,IF(bracing!$AF$13=bracing!$AF$9,0,IF(bracing!$AF$13=bracing!$AF$10,0,IF(bracing!$AF$13=bracing!$AF$11,0,INDEX(bracing!$F$23:$O$23,1,AI22)))),0) -> 0 | AK22: =IF($AI22<=bracing!$AF$32,IF(bracing!$AF$13=bracing!$AF$9,0,IF(bracing!$AF$13=bracing!$AF$10,INDEX(bracing!$F$25:$O$25,1,AI22-1),IF(bracing!$AF$13=bracing!$AF$11,INDEX(bracing!$F$25:$O$25,1,AI22-1),INDEX(bracing!$F$25:$O$25,1,AI22)))),0) -> 0 | AM22: 3 | AN22: =$AN$10 -> -1.5 | AO22: =IF(AM22<=bracing!$AF$32,INDEX(bracing!$F$25:$O$25,1,AM22),4) -> 11 | AQ22: 1 | AR22: =$AR$16-$AR$9 -> 5.833333333 | AS22: =IF(AQ22<=bracing!$AF$32,INDEX(bracing!$F$25:$O$25,1,AQ22),$AS$19) -> 4 | AV22: =AV19 -> 9.083333333 | AW22: =INDEX(bracing!F25:O25,1,bracing!AF32) -> 20 | AY22: 2 | AZ22: =IF(AY22<=bracing!$AF$32,INDEX(bracing!$F$21:$O$21,1,AY22)&"m","") -> 4m | BA22: =BA20 -> 5.433333333 | BB22: =IF(AY22<=bracing!$AF$32,INDEX(bracing!$F$25:$O$25,1,AY22)-INDEX(bracing!$F$21:$O$21,1,AY22)/2,0) -> 6
A23: 1 | B23: 2 | C23: 100 x 100 x 12 | D23: 12 | E23: 17.8 | F23: 12 | G23: 6 | H23: 22.7 | I23: 2.9 | J23: 207 | K23: 328 | L23: 85.7 | M23: 3.02 | N23: 3.8 | O23: 1.94 | P23: 29.1 | Q23: 11.8 | R23: 2.44 | AA23: 1 | AB23: 0 | AC23: =4 -> 4 | AF23: =IF($AE22<=bracing!$AF$32,IF(bracing!$AF$13=bracing!$AF$9,3,IF(bracing!$AF$13=bracing!$AF$10,3,IF(bracing!$AF$13=bracing!$AF$11,3,INDEX(bracing!$F$23:$O$23,1,AE22)))),0) -> 3 | AG23: =IF($AE22<=bracing!$AF$32,IF(bracing!$AF$13=bracing!$AF$9,INDEX(bracing!$F$25:$O$25,1,AE22-1),IF(bracing!$AF$13=bracing!$AF$10,INDEX(bracing!$F$25:$O$25,1,AE22-1),IF(bracing!$AF$13=bracing!$AF$11,INDEX(bracing!$F$25:$O$25,1,AE22-1)+INDEX(bracing!$F$23:$O$23,1,AE22),INDEX(bracing!$F$25:$O$25,1,AE22)))),0) -> 8 | AJ23: =IF($AI22<=bracing!$AF$32,IF(bracing!$AF$13=bracing!$AF$9,0,IF(bracing!$AF$13=bracing!$AF$10,3,IF(bracing!$AF$13=bracing!$AF$11,3,3))),0) -> 0 | AK23: =IF($AI22<=bracing!$AF$32,IF(bracing!$AF$13=bracing!$AF$9,0,IF(bracing!$AF$13=bracing!$AF$10,INDEX(bracing!$F$25:$O$25,1,AI22),IF(bracing!$AF$13=bracing!$AF$11,INDEX(bracing!$F$25:$O$25,1,AI22-1)+INDEX(bracing!$F$23:$O$23,1,AI22),INDEX(bracing!$F$25:$O$25,1,AI22-1)))),0) -> 0 | AN23: =$AN$10+$AN$11 -> -0.5 | AO23: =AO22 -> 11 | AR23: =$AR$16+$AR$9 -> 6.666666667 | AS23: =AS22 -> 4 | AV23: =AV20 -> 9.916666667 | AW23: =AW22 -> 20
A24: 1 | B24: 2 | C24: 100 x 100 x 15 | D24: 15 | E24: 21.9 | F24: 12 | G24: 6 | H24: 27.9 | I24: 3.02 | J24: 249 | K24: 395 | L24: 105 | M24: 2.98 | N24: 3.76 | O24: 1.94 | P24: 35.6 | Q24: 22.3 | R24: 1.92 | AB24: =3 -> 3 | AC24: =AC23 -> 4 | AY24: 3 | AZ24: =IF(AY24<=bracing!$AF$32,INDEX(bracing!$F$21:$O$21,1,AY24)&"m","") -> 3m | BA24: =BA22 -> 5.433333333 | BB24: =IF(AY24<=bracing!$AF$32,INDEX(bracing!$F$25:$O$25,1,AY24)-INDEX(bracing!$F$21:$O$21,1,AY24)/2,0) -> 9.5
A25: 1 | B25: 2 | C25: 120 x 120 x 8 | D25: 8 | E25: 14.7 | F25: 13 | G25: 6.5 | H25: 18.7 | I25: 3.23 | J25: 256 | K25: 411 | L25: 107 | M25: 3.69 | N25: 4.67 | O25: 2.38 | P25: 29.1 | Q25: 4.44 | R25: 4.56 | AE25: 4 | AF25: =IF($AE25<=bracing!$AF$32,IF(bracing!$AF$13=bracing!$AF$9,0,IF(bracing!$AF$13=bracing!$AF$10,0,IF(bracing!$AF$13=bracing!$AF$11,0,0))),0) -> 0 | AG25: =IF($AE25<=bracing!$AF$32,IF(bracing!$AF$13=bracing!$AF$9,INDEX(bracing!$F$25:$O$25,1,AE25),IF(bracing!$AF$13=bracing!$AF$10,INDEX(bracing!$F$25:$O$25,1,AE25),IF(bracing!$AF$13=bracing!$AF$11,INDEX(bracing!$F$25:$O$25,1,AE25),INDEX(bracing!$F$25:$O$25,1,AE25-1)))),0) -> 14 | AI25: 4 | AJ25: =IF($AI25<=bracing!$AF$32,IF(bracing!$AF$13=bracing!$AF$9,0,IF(bracing!$AF$13=bracing!$AF$10,0,IF(bracing!$AF$13=bracing!$AF$11,0,INDEX(bracing!$F$23:$O$23,1,AI25)))),0) -> 0 | AK25: =IF($AI25<=bracing!$AF$32,IF(bracing!$AF$13=bracing!$AF$9,0,IF(bracing!$AF$13=bracing!$AF$10,INDEX(bracing!$F$25:$O$25,1,AI25-1),IF(bracing!$AF$13=bracing!$AF$11,INDEX(bracing!$F$25:$O$25,1,AI25-1),INDEX(bracing!$F$25:$O$25,1,AI25)))),0) -> 0 | AM25: 4 | AN25: =$AN$10 -> -1.5 | AO25: =IF(AM25<=bracing!$AF$32,INDEX(bracing!$F$25:$O$25,1,AM25),4) -> 14 | AQ25: 2 | AR25: =$AR$16-$AR$9 -> 5.833333333 | AS25: =IF(AQ25<=bracing!$AF$32,INDEX(bracing!$F$25:$O$25,1,AQ25),$AS$19) -> 8 | AU25: Dimension line 3
A26: 1 | B26: 2 | C26: 120 x 120 x 10 | D26: 10 | E26: 18.2 | F26: 13 | G26: 6.5 | H26: 23.2 | I26: 3.31 | J26: 313 | K26: 497 | L26: 129 | M26: 3.67 | N26: 4.63 | O26: 2.36 | P26: 36 | Q26: 8.41 | R26: 3.61 | AA26: 2 | AB26: =IF($AA26<=bracing!$AF$32,AB23,0) -> 0 | AC26: =IF($AA26<=bracing!$AF$32,INDEX(bracing!$F$25:$O$25,1,AA26),0) -> 8 | AF26: =IF($AE25<=bracing!$AF$32,IF(bracing!$AF$13=bracing!$AF$9,3,IF(bracing!$AF$13=bracing!$AF$10,3,IF(bracing!$AF$13=bracing!$AF$11,3,INDEX(bracing!$F$23:$O$23,1,AE25)))),0) -> 3 | AG26: =IF($AE25<=bracing!$AF$32,IF(bracing!$AF$13=bracing!$AF$9,INDEX(bracing!$F$25:$O$25,1,AE25-1),IF(bracing!$AF$13=bracing!$AF$10,INDEX(bracing!$F$25:$O$25,1,AE25-1),IF(bracing!$AF$13=bracing!$AF$11,INDEX(bracing!$F$25:$O$25,1,AE25-1)+INDEX(bracing!$F$23:$O$23,1,AE25),INDEX(bracing!$F$25:$O$25,1,AE25)))),0) -> 11 | AJ26: =IF($AI25<=bracing!$AF$32,IF(bracing!$AF$13=bracing!$AF$9,0,IF(bracing!$AF$13=bracing!$AF$10,3,IF(bracing!$AF$13=bracing!$AF$11,3,3))),0) -> 0 | AK26: =IF($AI25<=bracing!$AF$32,IF(bracing!$AF$13=bracing!$AF$9,0,IF(bracing!$AF$13=bracing!$AF$10,INDEX(bracing!$F$25:$O$25,1,AI25),IF(bracing!$AF$13=bracing!$AF$11,INDEX(bracing!$F$25:$O$25,1,AI25-1)+INDEX(bracing!$F$23:$O$23,1,AI25),INDEX(bracing!$F$25:$O$25,1,AI25-1)))),0) -> 0 | AN26: =$AN$10+$AN$11 -> -0.5 | AO26: =AO25 -> 14 | AR26: =$AR$16+$AR$9 -> 6.666666667 | AS26: =AS25 -> 8 | AV26: =-AR9 -> -0.4166666667 | AW26: =-AR11 -> -3.25 | AY26: 4 | AZ26: =IF(AY26<=bracing!$AF$32,INDEX(bracing!$F$21:$O$21,1,AY26)&"m","") -> 3m | BA26: =BA24 -> 5.433333333 | BB26: =IF(AY26<=bracing!$AF$32,INDEX(bracing!$F$25:$O$25,1,AY26)-INDEX(bracing!$F$21:$O$21,1,AY26)/2,0) -> 12.5
A27: 1 | B27: 2 | C27: 120 x 120 x 12 | D27: 12 | E27: 21.6 | F27: 13 | G27: 6.5 | H27: 27.5 | I27: 3.4 | J27: 368 | K27: 584 | L27: 152 | M27: 3.65 | N27: 4.6 | O27: 2.35 | P27: 42.7 | Q27: 14.2 | R27: 2.99 | AB27: =IF($AA26<=bracing!$AF$32,AB24,0) -> 3 | AC27: =AC26 -> 8 | AV27: =bracing!N14+AR9 -> 3.416666667 | AW27: =AW26 -> -3.25
A28: 1 | B28: 2 | C28: 120 x 120 x 15 | D28: 15 | E28: 26.6 | F28: 13 | G28: 6.5 | H28: 33.9 | I28: 3.51 | J28: 445 | K28: 710 | L28: 186 | M28: 3.62 | N28: 4.57 | O28: 2.34 | P28: 52.4 | Q28: 27 | R28: 2.37 | AE28: 5 | AF28: =IF($AE28<=bracing!$AF$32,IF(bracing!$AF$13=bracing!$AF$9,0,IF(bracing!$AF$13=bracing!$AF$10,0,IF(bracing!$AF$13=bracing!$AF$11,0,0))),0) -> 0 | AG28: =IF($AE28<=bracing!$AF$32,IF(bracing!$AF$13=bracing!$AF$9,INDEX(bracing!$F$25:$O$25,1,AE28),IF(bracing!$AF$13=bracing!$AF$10,INDEX(bracing!$F$25:$O$25,1,AE28),IF(bracing!$AF$13=bracing!$AF$11,INDEX(bracing!$F$25:$O$25,1,AE28),INDEX(bracing!$F$25:$O$25,1,AE28-1)))),0) -> 17 | AI28: 5 | AJ28: =IF($AI28<=bracing!$AF$32,IF(bracing!$AF$13=bracing!$AF$9,0,IF(bracing!$AF$13=bracing!$AF$10,0,IF(bracing!$AF$13=bracing!$AF$11,0,INDEX(bracing!$F$23:$O$23,1,AI28)))),0) -> 0 | AK28: =IF($AI28<=bracing!$AF$32,IF(bracing!$AF$13=bracing!$AF$9,0,IF(bracing!$AF$13=bracing!$AF$10,INDEX(bracing!$F$25:$O$25,1,AI28-1),IF(bracing!$AF$13=bracing!$AF$11,INDEX(bracing!$F$25:$O$25,1,AI28-1),INDEX(bracing!$F$25:$O$25,1,AI28)))),0) -> 0 | AM28: 5 | AN28: =$AN$10 -> -1.5 | AO28: =IF(AM28<=bracing!$AF$32,INDEX(bracing!$F$25:$O$25,1,AM28),4) -> 17 | AQ28: 3 | AR28: =$AR$16-$AR$9 -> 5.833333333 | AS28: =IF(AQ28<=bracing!$AF$32,INDEX(bracing!$F$25:$O$25,1,AQ28),$AS$19) -> 11 | AY28: 5 | AZ28: =IF(AY28<=bracing!$AF$32,INDEX(bracing!$F$21:$O$21,1,AY28)&"m","") -> 3m | BA28: =BA26 -> 5.433333333 | BB28: =IF(AY28<=bracing!$AF$32,INDEX(bracing!$F$25:$O$25,1,AY28)-INDEX(bracing!$F$21:$O$21,1,AY28)/2,0) -> 15.5
A29: 1 | B29: 2 | C29: 150 x 150 x 10 | D29: 10 | E29: 23 | F29: 16 | G29: 8 | H29: 29.3 | I29: 4.03 | J29: 624 | K29: 990 | L29: 258 | M29: 4.62 | N29: 5.82 | O29: 2.97 | P29: 56.9 | Q29: 10.8 | R29: 4.51 | AA29: 3 | AB29: =IF($AA29<=bracing!$AF$32,AB26,0) -> 0 | AC29: =IF($AA29<=bracing!$AF$32,INDEX(bracing!$F$25:$O$25,1,AA29),0) -> 11 | AF29: =IF($AE28<=bracing!$AF$32,IF(bracing!$AF$13=bracing!$AF$9,3,IF(bracing!$AF$13=bracing!$AF$10,3,IF(bracing!$AF$13=bracing!$AF$11,3,INDEX(bracing!$F$23:$O$23,1,AE28)))),0) -> 3 | AG29: =IF($AE28<=bracing!$AF$32,IF(bracing!$AF$13=bracing!$AF$9,INDEX(bracing!$F$25:$O$25,1,AE28-1),IF(bracing!$AF$13=bracing!$AF$10,INDEX(bracing!$F$25:$O$25,1,AE28-1),IF(bracing!$AF$13=bracing!$AF$11,INDEX(bracing!$F$25:$O$25,1,AE28-1)+INDEX(bracing!$F$23:$O$23,1,AE28),INDEX(bracing!$F$25:$O$25,1,AE28)))),0) -> 14 | AJ29: =IF($AI28<=bracing!$AF$32,IF(bracing!$AF$13=bracing!$AF$9,0,IF(bracing!$AF$13=bracing!$AF$10,3,IF(bracing!$AF$13=bracing!$AF$11,3,3))),0) -> 0 | AK29: =IF($AI28<=bracing!$AF$32,IF(bracing!$AF$13=bracing!$AF$9,0,IF(bracing!$AF$13=bracing!$AF$10,INDEX(bracing!$F$25:$O$25,1,AI28),IF(bracing!$AF$13=bracing!$AF$11,INDEX(bracing!$F$25:$O$25,1,AI28-1)+INDEX(bracing!$F$23:$O$23,1,AI28),INDEX(bracing!$F$25:$O$25,1,AI28-1)))),0) -> 0 | AN29: =$AN$10+$AN$11 -> -0.5 | AO29: =AO28 -> 17 | AR29: =$AR$16+$AR$9 -> 6.666666667 | AS29: =AS28 -> 11 | AV29: 0 | AW29: =AW26-AR9 -> -3.666666667
A30: 1 | B30: 2 | C30: 150 x 150 x 12 | D30: 12 | E30: 27.3 | F30: 16 | G30: 8 | H30: 34.8 | I30: 4.12 | J30: 737 | K30: 1170 | L30: 303 | M30: 4.6 | N30: 5.8 | O30: 2.95 | P30: 67.8 | Q30: 18.2 | R30: 3.77 | AB30: =IF($AA29<=bracing!$AF$32,AB27,0) -> 3 | AC30: =AC29 -> 11 | AV30: 0 | AW30: =AW26+AR9 -> -2.833333333 | AY30: 6 | AZ30: =IF(AY30<=bracing!$AF$32,INDEX(bracing!$F$21:$O$21,1,AY30)&"m","") -> 3m | BA30: =BA28 -> 5.433333333 | BB30: =IF(AY30<=bracing!$AF$32,INDEX(bracing!$F$25:$O$25,1,AY30)-INDEX(bracing!$F$21:$O$21,1,AY30)/2,0) -> 18.5
A31: 1 | B31: 2 | C31: 150 x 150 x 15 | D31: 15 | E31: 33.8 | F31: 16 | G31: 8 | H31: 43 | I31: 4.25 | J31: 898 | K31: 1430 | L31: 370 | M31: 4.57 | N31: 5.76 | O31: 2.93 | P31: 83.5 | Q31: 34.6 | R31: 3.01 | AE31: 6 | AF31: =IF($AE31<=bracing!$AF$32,IF(bracing!$AF$13=bracing!$AF$9,0,IF(bracing!$AF$13=bracing!$AF$10,0,IF(bracing!$AF$13=bracing!$AF$11,0,0))),0) -> 0 | AG31: =IF($AE31<=bracing!$AF$32,IF(bracing!$AF$13=bracing!$AF$9,INDEX(bracing!$F$25:$O$25,1,AE31),IF(bracing!$AF$13=bracing!$AF$10,INDEX(bracing!$F$25:$O$25,1,AE31),IF(bracing!$AF$13=bracing!$AF$11,INDEX(bracing!$F$25:$O$25,1,AE31),INDEX(bracing!$F$25:$O$25,1,AE31-1)))),0) -> 20 | AI31: 6 | AJ31: =IF($AI31<=bracing!$AF$32,IF(bracing!$AF$13=bracing!$AF$9,0,IF(bracing!$AF$13=bracing!$AF$10,0,IF(bracing!$AF$13=bracing!$AF$11,0,INDEX(bracing!$F$23:$O$23,1,AI31)))),0) -> 0 | AK31: =IF($AI31<=bracing!$AF$32,IF(bracing!$AF$13=bracing!$AF$9,0,IF(bracing!$AF$13=bracing!$AF$10,INDEX(bracing!$F$25:$O$25,1,AI31-1),IF(bracing!$AF$13=bracing!$AF$11,INDEX(bracing!$F$25:$O$25,1,AI31-1),INDEX(bracing!$F$25:$O$25,1,AI31)))),0) -> 0 | AM31: 6 | AN31: =$AN$10 -> -1.5 | AO31: =IF(AM31<=bracing!$AF$32,INDEX(bracing!$F$25:$O$25,1,AM31),4) -> 20 | AQ31: 4 | AR31: =$AR$16-$AR$9 -> 5.833333333 | AS31: =IF(AQ31<=bracing!$AF$32,INDEX(bracing!$F$25:$O$25,1,AQ31),$AS$19) -> 14
A32: 2 | B32: 2 | C32: 150 x 150 x 18 | D32: 18 | E32: 40.1 | F32: 16 | G32: 8 | H32: 51 | I32: 4.37 | J32: 1050 | K32: 1680 | L32: 440 | M32: 4.54 | N32: 5.73 | O32: 2.92 | P32: 98.8 | Q32: 58.6 | R32: 2.48 | AA32: 4 | AB32: =IF($AA32<=bracing!$AF$32,AB29,0) -> 0 | AC32: =IF($AA32<=bracing!$AF$32,INDEX(bracing!$F$25:$O$25,1,AA32),0) -> 14 | AF32: =IF($AE31<=bracing!$AF$32,IF(bracing!$AF$13=bracing!$AF$9,3,IF(bracing!$AF$13=bracing!$AF$10,3,IF(bracing!$AF$13=bracing!$AF$11,3,INDEX(bracing!$F$23:$O$23,1,AE31)))),0) -> 3 | AG32: =IF($AE31<=bracing!$AF$32,IF(bracing!$AF$13=bracing!$AF$9,INDEX(bracing!$F$25:$O$25,1,AE31-1),IF(bracing!$AF$13=bracing!$AF$10,INDEX(bracing!$F$25:$O$25,1,AE31-1),IF(bracing!$AF$13=bracing!$AF$11,INDEX(bracing!$F$25:$O$25,1,AE31-1)+INDEX(bracing!$F$23:$O$23,1,AE31),INDEX(bracing!$F$25:$O$25,1,AE31)))),0) -> 17 | AJ32: =IF($AI31<=bracing!$AF$32,IF(bracing!$AF$13=bracing!$AF$9,0,IF(bracing!$AF$13=bracing!$AF$10,3,IF(bracing!$AF$13=bracing!$AF$11,3,3))),0) -> 0 | AK32: =IF($AI31<=bracing!$AF$32,IF(bracing!$AF$13=bracing!$AF$9,0,IF(bracing!$AF$13=bracing!$AF$10,INDEX(bracing!$F$25:$O$25,1,AI31),IF(bracing!$AF$13=bracing!$AF$11,INDEX(bracing!$F$25:$O$25,1,AI31-1)+INDEX(bracing!$F$23:$O$23,1,AI31),INDEX(bracing!$F$25:$O$25,1,AI31-1)))),0) -> 0 | AN32: =$AN$10+$AN$11 -> -0.5 | AO32: =AO31 -> 20 | AR32: =$AR$16+$AR$9 -> 6.666666667 | AS32: =AS31 -> 14 | AV32: =bracing!N14 -> 3 | AW32: =AW29 -> -3.666666667 | AY32: 7 | AZ32: =IF(AY32<=bracing!$AF$32,INDEX(bracing!$F$21:$O$21,1,AY32)&"m","") ->  | BA32: =BA30 -> 5.433333333 | BB32: =IF(AY32<=bracing!$AF$32,INDEX(bracing!$F$25:$O$25,1,AY32)-INDEX(bracing!$F$21:$O$21,1,AY32)/2,0) -> 0
A33: 1 | B33: 2 | C33: 200 x 200 x 16 | D33: 16 | E33: 48.5 | F33: 18 | G33: 9 | H33: 61.8 | I33: 5.52 | J33: 2342 | K33: 3720 | L33: 960 | M33: 6.16 | N33: 7.76 | O33: 3.94 | P33: 162 | Q33: 56.1 | R33: 3.85 | AB33: =IF($AA32<=bracing!$AF$32,AB30,0) -> 3 | AC33: =AC32 -> 14 | AV33: =AV32 -> 3 | AW33: =AW30 -> -2.833333333
A34: 2 | B34: 2 | C34: 200 x 200 x 18 | D34: 18 | E34: 54.2 | F34: 18 | G34: 9 | H34: 69.1 | I34: 5.6 | J34: 2600 | K34: 4150 | L34: 1050 | M34: 6.13 | N34: 7.75 | O34: 3.9 | P34: 181 | Q34: 78.9 | R34: 3.43 | AE34: 7 | AF34: =IF($AE34<=bracing!$AF$32,IF(bracing!$AF$13=bracing!$AF$9,0,IF(bracing!$AF$13=bracing!$AF$10,0,IF(bracing!$AF$13=bracing!$AF$11,0,0))),0) -> 0 | AG34: =IF($AE34<=bracing!$AF$32,IF(bracing!$AF$13=bracing!$AF$9,INDEX(bracing!$F$25:$O$25,1,AE34),IF(bracing!$AF$13=bracing!$AF$10,INDEX(bracing!$F$25:$O$25,1,AE34),IF(bracing!$AF$13=bracing!$AF$11,INDEX(bracing!$F$25:$O$25,1,AE34),INDEX(bracing!$F$25:$O$25,1,AE34-1)))),0) -> 0 | AI34: 7 | AJ34: =IF($AI34<=bracing!$AF$32,IF(bracing!$AF$13=bracing!$AF$9,0,IF(bracing!$AF$13=bracing!$AF$10,0,IF(bracing!$AF$13=bracing!$AF$11,0,INDEX(bracing!$F$23:$O$23,1,AI34)))),0) -> 0 | AK34: =IF($AI34<=bracing!$AF$32,IF(bracing!$AF$13=bracing!$AF$9,0,IF(bracing!$AF$13=bracing!$AF$10,INDEX(bracing!$F$25:$O$25,1,AI34-1),IF(bracing!$AF$13=bracing!$AF$11,INDEX(bracing!$F$25:$O$25,1,AI34-1),INDEX(bracing!$F$25:$O$25,1,AI34)))),0) -> 0 | AM34: 7 | AN34: =$AN$10 -> -1.5 | AO34: =IF(AM34<=bracing!$AF$32,INDEX(bracing!$F$25:$O$25,1,AM34),4) -> 4 | AQ34: 5 | AR34: =$AR$16-$AR$9 -> 5.833333333 | AS34: =IF(AQ34<=bracing!$AF$32,INDEX(bracing!$F$25:$O$25,1,AQ34),$AS$19) -> 17 | AY34: 8 | AZ34: =IF(AY34<=bracing!$AF$32,INDEX(bracing!$F$21:$O$21,1,AY34)&"m","") ->  | BA34: =BA32 -> 5.433333333 | BB34: =IF(AY34<=bracing!$AF$32,INDEX(bracing!$F$25:$O$25,1,AY34)-INDEX(bracing!$F$21:$O$21,1,AY34)/2,0) -> 0
A35: 2 | B35: 2 | C35: 200 x 200 x 20 | D35: 20 | E35: 59.9 | F35: 18 | G35: 9 | H35: 76.3 | I35: 5.68 | J35: 2851 | K35: 4530 | L35: 1170 | M35: 6.11 | N35: 7.7 | O35: 3.92 | P35: 199 | Q35: 107 | R35: 3.05 | AA35: 5 | AB35: =IF($AA35<=bracing!$AF$32,AB32,0) -> 0 | AC35: =IF($AA35<=bracing!$AF$32,INDEX(bracing!$F$25:$O$25,1,AA35),0) -> 17 | AF35: =IF($AE34<=bracing!$AF$32,IF(bracing!$AF$13=bracing!$AF$9,3,IF(bracing!$AF$13=bracing!$AF$10,3,IF(bracing!$AF$13=bracing!$AF$11,3,INDEX(bracing!$F$23:$O$23,1,AE34)))),0) -> 0 | AG35: =IF($AE34<=bracing!$AF$32,IF(bracing!$AF$13=bracing!$AF$9,INDEX(bracing!$F$25:$O$25,1,AE34-1),IF(bracing!$AF$13=bracing!$AF$10,INDEX(bracing!$F$25:$O$25,1,AE34-1),IF(bracing!$AF$13=bracing!$AF$11,INDEX(bracing!$F$25:$O$25,1,AE34-1)+INDEX(bracing!$F$23:$O$23,1,AE34),INDEX(bracing!$F$25:$O$25,1,AE34)))),0) -> 0 | AJ35: =IF($AI34<=bracing!$AF$32,IF(bracing!$AF$13=bracing!$AF$9,0,IF(bracing!$AF$13=bracing!$AF$10,3,IF(bracing!$AF$13=bracing!$AF$11,3,3))),0) -> 0 | AK35: =IF($AI34<=bracing!$AF$32,IF(bracing!$AF$13=bracing!$AF$9,0,IF(bracing!$AF$13=bracing!$AF$10,INDEX(bracing!$F$25:$O$25,1,AI34),IF(bracing!$AF$13=bracing!$AF$11,INDEX(bracing!$F$25:$O$25,1,AI34-1)+INDEX(bracing!$F$23:$O$23,1,AI34),INDEX(bracing!$F$25:$O$25,1,AI34-1)))),0) -> 0 | AN35: =$AN$10+$AN$11 -> -0.5 | AO35: =AO34 -> 4 | AR35: =$AR$16+$AR$9 -> 6.666666667 | AS35: =AS34 -> 17 | AU35: Reactions
A36: 2 | B36: 2 | C36: 200 x 200 x 24 | D36: 24 | E36: 71.1 | F36: 18 | G36: 9 | H36: 90.6 | I36: 5.84 | J36: 3331 | K36: 5280 | L36: 1380 | M36: 6.06 | N36: 7.64 | O36: 3.9 | P36: 235 | Q36: 182 | R36: 2.5 | AB36: =IF($AA35<=bracing!$AF$32,AB33,0) -> 3 | AC36: =AC35 -> 17 | AU36: A | AV36: =-AR10 -> -0.8166666667 | AW36: =-AR10 -> -0.8166666667 | AY36: 9 | AZ36: =IF(AY36<=bracing!$AF$32,INDEX(bracing!$F$21:$O$21,1,AY36)&"m","") ->  | BA36: =BA34 -> 5.433333333 | BB36: =IF(AY36<=bracing!$AF$32,INDEX(bracing!$F$25:$O$25,1,AY36)-INDEX(bracing!$F$21:$O$21,1,AY36)/2,0) -> 0
AE37: 8 | AF37: =IF($AE37<=bracing!$AF$32,IF(bracing!$AF$13=bracing!$AF$9,0,IF(bracing!$AF$13=bracing!$AF$10,0,IF(bracing!$AF$13=bracing!$AF$11,0,0))),0) -> 0 | AG37: =IF($AE37<=bracing!$AF$32,IF(bracing!$AF$13=bracing!$AF$9,INDEX(bracing!$F$25:$O$25,1,AE37),IF(bracing!$AF$13=bracing!$AF$10,INDEX(bracing!$F$25:$O$25,1,AE37),IF(bracing!$AF$13=bracing!$AF$11,INDEX(bracing!$F$25:$O$25,1,AE37),INDEX(bracing!$F$25:$O$25,1,AE37-1)))),0) -> 0 | AI37: 8 | AJ37: =IF($AI37<=bracing!$AF$32,IF(bracing!$AF$13=bracing!$AF$9,0,IF(bracing!$AF$13=bracing!$AF$10,0,IF(bracing!$AF$13=bracing!$AF$11,0,INDEX(bracing!$F$23:$O$23,1,AI37)))),0) -> 0 | AK37: =IF($AI37<=bracing!$AF$32,IF(bracing!$AF$13=bracing!$AF$9,0,IF(bracing!$AF$13=bracing!$AF$10,INDEX(bracing!$F$25:$O$25,1,AI37-1),IF(bracing!$AF$13=bracing!$AF$11,INDEX(bracing!$F$25:$O$25,1,AI37-1),INDEX(bracing!$F$25:$O$25,1,AI37)))),0) -> 0 | AM37: 8 | AN37: =$AN$10 -> -1.5 | AO37: =IF(AM37<=bracing!$AF$32,INDEX(bracing!$F$25:$O$25,1,AM37),4) -> 4 | AQ37: 6 | AR37: =$AR$16-$AR$9 -> 5.833333333 | AS37: =IF(AQ37<=bracing!$AF$32,INDEX(bracing!$F$25:$O$25,1,AQ37),$AS$19) -> 20
AA38: 6 | AB38: =IF($AA38<=bracing!$AF$32,AB35,0) -> 0 | AC38: =IF($AA38<=bracing!$AF$32,INDEX(bracing!$F$25:$O$25,1,AA38),0) -> 20 | AF38: =IF($AE37<=bracing!$AF$32,IF(bracing!$AF$13=bracing!$AF$9,3,IF(bracing!$AF$13=bracing!$AF$10,3,IF(bracing!$AF$13=bracing!$AF$11,3,INDEX(bracing!$F$23:$O$23,1,AE37)))),0) -> 0 | AG38: =IF($AE37<=bracing!$AF$32,IF(bracing!$AF$13=bracing!$AF$9,INDEX(bracing!$F$25:$O$25,1,AE37-1),IF(bracing!$AF$13=bracing!$AF$10,INDEX(bracing!$F$25:$O$25,1,AE37-1),IF(bracing!$AF$13=bracing!$AF$11,INDEX(bracing!$F$25:$O$25,1,AE37-1)+INDEX(bracing!$F$23:$O$23,1,AE37),INDEX(bracing!$F$25:$O$25,1,AE37)))),0) -> 0 | AJ38: =IF($AI37<=bracing!$AF$32,IF(bracing!$AF$13=bracing!$AF$9,0,IF(bracing!$AF$13=bracing!$AF$10,3,IF(bracing!$AF$13=bracing!$AF$11,3,3))),0) -> 0 | AK38: =IF($AI37<=bracing!$AF$32,IF(bracing!$AF$13=bracing!$AF$9,0,IF(bracing!$AF$13=bracing!$AF$10,INDEX(bracing!$F$25:$O$25,1,AI37),IF(bracing!$AF$13=bracing!$AF$11,INDEX(bracing!$F$25:$O$25,1,AI37-1)+INDEX(bracing!$F$23:$O$23,1,AI37),INDEX(bracing!$F$25:$O$25,1,AI37-1)))),0) -> 0 | AN38: =$AN$10+$AN$11 -> -0.5 | AO38: =AO37 -> 4 | AR38: =$AR$16+$AR$9 -> 6.666666667 | AS38: =AS37 -> 20 | AU38: B | AV38: =bracing!N14-AR10 -> 2.183333333 | AW38: =AW36 -> -0.8166666667 | AY38: 10 | AZ38: =IF(AY38<=bracing!$AF$32,INDEX(bracing!$F$21:$O$21,1,AY38)&"m","") ->  | BA38: =BA36 -> 5.433333333 | BB38: =IF(AY38<=bracing!$AF$32,INDEX(bracing!$F$25:$O$25,1,AY38)-INDEX(bracing!$F$21:$O$21,1,AY38)/2,0) -> 0
AB39: =IF($AA38<=bracing!$AF$32,AB36,0) -> 3 | AC39: =AC38 -> 20
AE40: 9 | AF40: =IF($AE40<=bracing!$AF$32,IF(bracing!$AF$13=bracing!$AF$9,0,IF(bracing!$AF$13=bracing!$AF$10,0,IF(bracing!$AF$13=bracing!$AF$11,0,0))),0) -> 0 | AG40: =IF($AE40<=bracing!$AF$32,IF(bracing!$AF$13=bracing!$AF$9,INDEX(bracing!$F$25:$O$25,1,AE40),IF(bracing!$AF$13=bracing!$AF$10,INDEX(bracing!$F$25:$O$25,1,AE40),IF(bracing!$AF$13=bracing!$AF$11,INDEX(bracing!$F$25:$O$25,1,AE40),INDEX(bracing!$F$25:$O$25,1,AE40-1)))),0) -> 0 | AI40: 9 | AJ40: =IF($AI40<=bracing!$AF$32,IF(bracing!$AF$13=bracing!$AF$9,0,IF(bracing!$AF$13=bracing!$AF$10,0,IF(bracing!$AF$13=bracing!$AF$11,0,INDEX(bracing!$F$23:$O$23,1,AI40)))),0) -> 0 | AK40: =IF($AI40<=bracing!$AF$32,IF(bracing!$AF$13=bracing!$AF$9,0,IF(bracing!$AF$13=bracing!$AF$10,INDEX(bracing!$F$25:$O$25,1,AI40-1),IF(bracing!$AF$13=bracing!$AF$11,INDEX(bracing!$F$25:$O$25,1,AI40-1),INDEX(bracing!$F$25:$O$25,1,AI40)))),0) -> 0 | AM40: 9 | AN40: =$AN$10 -> -1.5 | AO40: =IF(AM40<=bracing!$AF$32,INDEX(bracing!$F$25:$O$25,1,AM40),4) -> 4 | AQ40: 7 | AR40: =$AR$16-$AR$9 -> 5.833333333 | AS40: =IF(AQ40<=bracing!$AF$32,INDEX(bracing!$F$25:$O$25,1,AQ40),$AS$19) -> 0 | AZ40: Bracing labels
C41: Advance® UKA - Unequal | AA41: 7 | AB41: =IF($AA41<=bracing!$AF$32,AB38,0) -> 0 | AC41: =IF($AA41<=bracing!$AF$32,INDEX(bracing!$F$25:$O$25,1,AA41),0) -> 0 | AF41: =IF($AE40<=bracing!$AF$32,IF(bracing!$AF$13=bracing!$AF$9,3,IF(bracing!$AF$13=bracing!$AF$10,3,IF(bracing!$AF$13=bracing!$AF$11,3,INDEX(bracing!$F$23:$O$23,1,AE40)))),0) -> 0 | AG41: =IF($AE40<=bracing!$AF$32,IF(bracing!$AF$13=bracing!$AF$9,INDEX(bracing!$F$25:$O$25,1,AE40-1),IF(bracing!$AF$13=bracing!$AF$10,INDEX(bracing!$F$25:$O$25,1,AE40-1),IF(bracing!$AF$13=bracing!$AF$11,INDEX(bracing!$F$25:$O$25,1,AE40-1)+INDEX(bracing!$F$23:$O$23,1,AE40),INDEX(bracing!$F$25:$O$25,1,AE40)))),0) -> 0 | AJ41: =IF($AI40<=bracing!$AF$32,IF(bracing!$AF$13=bracing!$AF$9,0,IF(bracing!$AF$13=bracing!$AF$10,3,IF(bracing!$AF$13=bracing!$AF$11,3,3))),0) -> 0 | AK41: =IF($AI40<=bracing!$AF$32,IF(bracing!$AF$13=bracing!$AF$9,0,IF(bracing!$AF$13=bracing!$AF$10,INDEX(bracing!$F$25:$O$25,1,AI40),IF(bracing!$AF$13=bracing!$AF$11,INDEX(bracing!$F$25:$O$25,1,AI40-1)+INDEX(bracing!$F$23:$O$23,1,AI40),INDEX(bracing!$F$25:$O$25,1,AI40-1)))),0) -> 0 | AN41: =$AN$10+$AN$11 -> -0.5 | AO41: =AO40 -> 4 | AR41: =$AR$16+$AR$9 -> 6.666666667 | AS41: =AS40 -> 0 | AY41: 1 | AZ41: =IF(AY41<=bracing!$AF$32,IF(INDEX(bracing!$AB$44:$AB$53,AY41)<>bracing!$AH$22,"(fails) ","")&INDEX(bracing!$D$44:$D$53,AY41)&" "&bracing!$AK$18,"") -> 101.6 x 10 CHS | BA41: =$AV$16+AR12 -> 13.625 | BB41: =BB20 -> 2
D42: Table 1.1.6.1 | AB42: =IF($AA41<=bracing!$AF$32,AB39,0) -> 0 | AC42: =AC41 -> 0 | AY42: 2 | AZ42: =IF(AY42<=bracing!$AF$32,IF(INDEX(bracing!$AB$44:$AB$53,AY42)<>bracing!$AH$22,"(fails) ","")&INDEX(bracing!$D$44:$D$53,AY42)&" "&bracing!$AK$18,"") -> 101.6 x 10 CHS | BA42: =$BA$41 -> 13.625 | BB42: =BB22 -> 6
AE43: 10 | AF43: =IF($AE43<=bracing!$AF$32,IF(bracing!$AF$13=bracing!$AF$9,0,IF(bracing!$AF$13=bracing!$AF$10,0,IF(bracing!$AF$13=bracing!$AF$11,0,0))),0) -> 0 | AG43: =IF($AE43<=bracing!$AF$32,IF(bracing!$AF$13=bracing!$AF$9,INDEX(bracing!$F$25:$O$25,1,AE43),IF(bracing!$AF$13=bracing!$AF$10,INDEX(bracing!$F$25:$O$25,1,AE43),IF(bracing!$AF$13=bracing!$AF$11,INDEX(bracing!$F$25:$O$25,1,AE43),INDEX(bracing!$F$25:$O$25,1,AE43-1)))),0) -> 0 | AI43: 10 | AJ43: =IF($AI43<=bracing!$AF$32,IF(bracing!$AF$13=bracing!$AF$9,0,IF(bracing!$AF$13=bracing!$AF$10,0,IF(bracing!$AF$13=bracing!$AF$11,0,INDEX(bracing!$F$23:$O$23,1,AI43)))),0) -> 0 | AK43: =IF($AI43<=bracing!$AF$32,IF(bracing!$AF$13=bracing!$AF$9,0,IF(bracing!$AF$13=bracing!$AF$10,INDEX(bracing!$F$25:$O$25,1,AI43-1),IF(bracing!$AF$13=bracing!$AF$11,INDEX(bracing!$F$25:$O$25,1,AI43-1),INDEX(bracing!$F$25:$O$25,1,AI43)))),0) -> 0 | AM43: 10 | AN43: =$AN$10 -> -1.5 | AO43: =IF(AM43<=bracing!$AF$32,INDEX(bracing!$F$25:$O$25,1,AM43),4) -> 4 | AQ43: 8 | AR43: =$AR$16-$AR$9 -> 5.833333333 | AS43: =IF(AQ43<=bracing!$AF$32,INDEX(bracing!$F$25:$O$25,1,AQ43),$AS$19) -> 0 | AY43: 3 | AZ43: =IF(AY43<=bracing!$AF$32,IF(INDEX(bracing!$AB$44:$AB$53,AY43)<>bracing!$AH$22,"(fails) ","")&INDEX(bracing!$D$44:$D$53,AY43)&" "&bracing!$AK$18,"") -> 101.6 x 10 CHS | BA43: 13.625 | BB43: =BB24 -> 9.5
AA44: 8 | AB44: =IF($AA44<=bracing!$AF$32,AB41,0) -> 0 | AC44: =IF($AA44<=bracing!$AF$32,INDEX(bracing!$F$25:$O$25,1,AA44),0) -> 0 | AF44: =IF($AE43<=bracing!$AF$32,IF(bracing!$AF$13=bracing!$AF$9,3,IF(bracing!$AF$13=bracing!$AF$10,3,IF(bracing!$AF$13=bracing!$AF$11,3,INDEX(bracing!$F$23:$O$23,1,AE43)))),0) -> 0 | AG44: =IF($AE43<=bracing!$AF$32,IF(bracing!$AF$13=bracing!$AF$9,INDEX(bracing!$F$25:$O$25,1,AE43-1),IF(bracing!$AF$13=bracing!$AF$10,INDEX(bracing!$F$25:$O$25,1,AE43-1),IF(bracing!$AF$13=bracing!$AF$11,INDEX(bracing!$F$25:$O$25,1,AE43-1)+INDEX(bracing!$F$23:$O$23,1,AE43),INDEX(bracing!$F$25:$O$25,1,AE43)))),0) -> 0 | AJ44: =IF($AI43<=bracing!$AF$32,IF(bracing!$AF$13=bracing!$AF$9,0,IF(bracing!$AF$13=bracing!$AF$10,3,IF(bracing!$AF$13=bracing!$AF$11,3,3))),0) -> 0 | AK44: =IF($AI43<=bracing!$AF$32,IF(bracing!$AF$13=bracing!$AF$9,0,IF(bracing!$AF$13=bracing!$AF$10,INDEX(bracing!$F$25:$O$25,1,AI43),IF(bracing!$AF$13=bracing!$AF$11,INDEX(bracing!$F$25:$O$25,1,AI43-1)+INDEX(bracing!$F$23:$O$23,1,AI43),INDEX(bracing!$F$25:$O$25,1,AI43-1)))),0) -> 0 | AN44: =$AN$10+$AN$11 -> -0.5 | AO44: =AO43 -> 4 | AR44: =$AR$16+$AR$9 -> 6.666666667 | AS44: =AS43 -> 0 | AY44: 4 | AZ44: =IF(AY44<=bracing!$AF$32,IF(INDEX(bracing!$AB$44:$AB$53,AY44)<>bracing!$AH$22,"(fails) ","")&INDEX(bracing!$D$44:$D$53,AY44)&" "&bracing!$AK$18,"") -> 101.6 x 10 CHS | BA44: 13.625 | BB44: =BB26 -> 12.5
C45: Section | E45: Mass | F45: Radius | H45: Area | I45: Dimension | K45: Second Moment | O45: Radius | S45: Elastic | U45: Angle | V45: Torsional | W45: Equivalent Slenderness | Z45: Mono- | AB45: =IF($AA44<=bracing!$AF$32,AB42,0) -> 0 | AC45: =AC44 -> 0 | AY45: 5 | AZ45: =IF(AY45<=bracing!$AF$32,IF(INDEX(bracing!$AB$44:$AB$53,AY45)<>bracing!$AH$22,"(fails) ","")&INDEX(bracing!$D$44:$D$53,AY45)&" "&bracing!$AK$18,"") -> 101.6 x 10 CHS | BA45: 13.625 | BB45: =BB28 -> 15.5
C46: Designation | E46: per | H46: of | K46: of Area | O46: of Gyration | S46: Modulus | U46: Axis x-x | V46: Constant | W46: Coefficient | Z46: symmetry | AE46: Scale | AI46: Bases | AQ46: 9 | AR46: =$AR$16-$AR$9 -> 5.833333333 | AS46: =IF(AQ46<=bracing!$AF$32,INDEX(bracing!$F$25:$O$25,1,AQ46),$AS$19) -> 0 | AY46: 6 | AZ46: =IF(AY46<=bracing!$AF$32,IF(INDEX(bracing!$AB$44:$AB$53,AY46)<>bracing!$AH$22,"(fails) ","")&INDEX(bracing!$D$44:$D$53,AY46)&" "&bracing!$AK$18,"") -> 101.6 x 10 CHS | BA46: 13.625 | BB46: =BB30 -> 18.5
C47: Size | D47: Thickness | E47: Metre | F47: Root | G47: Toe | H47: Section | K47: Axis | L47: Axis | M47: Axis | N47: Axis | O47: Axis | P47: Axis | Q47: Axis | R47: Axis | S47: Axis | T47: Axis | U47: to | Z47: Index | AA47: 9 | AB47: =IF($AA47<=bracing!$AF$32,AB44,0) -> 0 | AC47: =IF($AA47<=bracing!$AF$32,INDEX(bracing!$F$25:$O$25,1,AA47),0) -> 0 | AF47: =$AF$53-INDEX($AF$52:$AG$52,1,$AF$54)/2 -> -6.729166667 | AG47: =($AG$53-INDEX($AF$52:$AG$52,1,$AF$54)/2)*1.25 -> -4.583333333 | AJ47: 0 | AK47: 0 | AR47: =$AR$16+$AR$9 -> 6.666666667 | AS47: =AS46 -> 0 | AY47: 7 | AZ47: =IF(AY47<=bracing!$AF$32,IF(INDEX(bracing!$AB$44:$AB$53,AY47)<>bracing!$AH$22,"(fails) ","")&INDEX(bracing!$D$44:$D$53,AY47)&" "&bracing!$AK$18,"") ->  | BA47: 13.625 | BB47: =BB32 -> 0
K48: x-x | L48: y-y | M48: u-u | N48: v-v | O48: x-x | P48: y-y | Q48: u-u | R48: v-v | S48: x-x | T48: y-y | U48: Axis u-u | W48: Min | Y48: Max | AB48: =IF($AA47<=bracing!$AF$32,AB45,0) -> 0 | AC48: =AC47 -> 0 | AF48: =$AF$53+INDEX($AF$52:$AG$52,1,$AF$54)/2 -> 17.35416667 | AG48: =($AG$53+INDEX($AF$52:$AG$52,1,$AF$54)/2)*1.25 -> 25.52083333 | AJ48: =bracing!N14 -> 3 | AK48: 0 | AY48: 8 | AZ48: =IF(AY48<=bracing!$AF$32,IF(INDEX(bracing!$AB$44:$AB$53,AY48)<>bracing!$AH$22,"(fails) ","")&INDEX(bracing!$D$44:$D$53,AY48)&" "&bracing!$AK$18,"") ->  | BA48: 13.625 | BB48: =BB34 -> 0
C49: A x B | D49: t | F49: r1 | G49: r2 | I49: cx | J49: cy | U49: tan α | V49: J | W49: Φa | Y49: Φa | Z49: Ψa | AQ49: 10 | AR49: =$AR$16-$AR$9 -> 5.833333333 | AS49: =IF(AQ49<=bracing!$AF$32,INDEX(bracing!$F$25:$O$25,1,AQ49),$AS$19) -> 0 | AY49: 9 | AZ49: =IF(AY49<=bracing!$AF$32,IF(INDEX(bracing!$AB$44:$AB$53,AY49)<>bracing!$AH$22,"(fails) ","")&INDEX(bracing!$D$44:$D$53,AY49)&" "&bracing!$AK$18,"") ->  | BA49: 13.625 | BB49: =BB36 -> 0
C50: mm | D50: mm | E50: kg/m | F50: mm | G50: mm | H50: cm2 | I50: cm | J50: cm | K50: cm4 | L50: cm4 | M50: cm4 | N50: cm4 | O50: cm | P50: cm | Q50: cm | R50: cm | S50: cm3 | T50: cm3 | V50: cm4 | AA50: 10 | AB50: =IF($AA50<=bracing!$AF$32,AB47,0) -> 0 | AC50: =IF($AA50<=bracing!$AF$32,INDEX(bracing!$F$25:$O$25,1,AA50),0) -> 0 | AE50: Max | AF50: =MAX(AB16:AB51,AF16:AF44,AJ16:AJ55,AN16:AN49,AR16:AR50,AV16:AV33,BA16:BA58) -> 13.625 | AG50: =MAX(AC16:AC51,AG16:AG44,AK16:AK55,AO16:AO49,AS16:AS50,AW16:AW33,BB16:BB58) -> 20.41666667 | AI50: Base line | AR50: =$AR$16+$AR$9 -> 6.666666667 | AS50: =AS49 -> 0 | AY50: 10 | AZ50: =IF(AY50<=bracing!$AF$32,IF(INDEX(bracing!$AB$44:$AB$53,AY50)<>bracing!$AH$22,"(fails) ","")&INDEX(bracing!$D$44:$D$53,AY50)&" "&bracing!$AK$18,"") ->  | BA50: 13.625 | BB50: =BB38 -> 0
A51: 1 | B51: 2 | C51: 100 x 65 x 7 | D51: 7 | E51: 8.77 | F51: 10 | G51: 5 | H51: 11.2 | I51: 3.23 | J51: 1.51 | K51: 113 | L51: 37.6 | M51: 128 | N51: 22 | O51: 3.17 | P51: 1.83 | Q51: 3.39 | R51: 1.4 | S51: 16.6 | T51: 7.53 | U51: 0.415 | V51: 2.02 | W51: 3.58 | Y51: 5 | Z51: 7.85 | AB51: =IF($AA50<=bracing!$AF$32,AB48,0) -> 0 | AC51: =AC50 -> 0 | AE51: Min | AF51: =MIN(AB16:AB51,AF16:AF44,AJ16:AJ55,AN16:AN49,AR16:AR50,AV16:AV33,BA16:BA58)+AN10 -> -3 | AG51: =MIN(AC16:AC51,AG16:AG44,AK16:AK55,AO16:AO49,AS16:AS50,AW16:AW33,BB16:BB58) -> -3.666666667 | AJ51: -0.5 | AK51: 0
A52: 1 | B52: 2 | C52: 100 x 65 x 8 | D52: 8 | E52: 9.94 | F52: 10 | G52: 5 | H52: 12.7 | I52: 3.27 | J52: 1.55 | K52: 127 | L52: 42.2 | M52: 144 | N52: 24.8 | O52: 3.16 | P52: 1.83 | Q52: 3.37 | R52: 1.4 | S52: 18.9 | T52: 8.54 | U52: 0.413 | V52: 2.96 | W52: 3.14 | Y52: 4.35 | Z52: 6.86 | AE52: length | AF52: =AF50-AF51 -> 16.625 | AG52: =AG50-AG51 -> 24.08333333 | AJ52: 0.5 | AK52: 0 | AZ52: Load labels
A53: 1 | B53: 2 | C53: 100 x 65 x 10 | D53: 10 | E53: 12.3 | F53: 10 | G53: 5 | H53: 15.6 | I53: 3.36 | J53: 1.63 | K53: 154 | L53: 51 | M53: 175 | N53: 30.1 | O53: 3.14 | P53: 1.81 | Q53: 3.35 | R53: 1.39 | S53: 23.2 | T53: 10.5 | U53: 0.41 | V53: 5.61 | W53: 2.52 | Y53: 3.43 | Z53: 5.45 | AE53: center point | AF53: =AF51+(AF50-AF51)/2 -> 5.3125 | AG53: =AG51+(AG50-AG51)/2 -> 8.375 | AY53: 1 | AZ53: =IF(AY53<=bracing!$AF$32,INDEX(bracing!$F$22:$O$22,1,AY53)&"kN","") -> 30kN | BA53: =AN12 -> -1.333333333 | BB53: =IF(AY53<=bracing!$AF$32,INDEX(bracing!$F$25:$O$25,1,AY53),0) -> 4
A54: 1 | B54: 2 | C54: 100 x 75 x 8 | D54: 8 | E54: 10.6 | F54: 10 | G54: 5 | H54: 13.5 | I54: 3.1 | J54: 1.87 | K54: 133 | L54: 64.1 | M54: 162 | N54: 34.6 | O54: 3.14 | P54: 2.18 | Q54: 3.47 | R54: 1.6 | S54: 19.3 | T54: 11.4 | U54: 0.547 | V54: 3.13 | W54: 3.18 | Y54: 4.08 | Z54: 5.24 | AE54: worst case | AF54: =IF(AF52>AG52,1,2) -> 2 | AH54: =AG50-AG51 -> 24.08333333 | AJ54: =bracing!N14-0.5 -> 2.5 | AK54: 0 | AY54: 2 | AZ54: =IF(AY54<=bracing!$AF$32,INDEX(bracing!$F$22:$O$22,1,AY54)&"kN","") -> 20kN | BA54: =BA53 -> -1.333333333 | BB54: =IF(AY54<=bracing!$AF$32,INDEX(bracing!$F$25:$O$25,1,AY54),0) -> 8
A55: 1 | B55: 2 | C55: 100 x 75 x 10 | D55: 10 | E55: 13 | F55: 10 | G55: 5 | H55: 16.6 | I55: 3.19 | J55: 1.95 | K55: 162 | L55: 77.6 | M55: 197 | N55: 42.2 | O55: 3.12 | P55: 2.16 | Q55: 3.45 | R55: 1.59 | S55: 23.8 | T55: 14 | U55: 0.544 | V55: 5.95 | W55: 2.54 | Y55: 3.22 | Z55: 4.17 | AG55: =AG53*2 -> 16.75 | AH55: =AH54/2 -> 12.04166667 | AJ55: =AJ54+1 -> 3.5 | AK55: 0 | AY55: 3 | AZ55: =IF(AY55<=bracing!$AF$32,INDEX(bracing!$F$22:$O$22,1,AY55)&"kN","") -> 20kN | BA55: -1.333333333 | BB55: =IF(AY55<=bracing!$AF$32,INDEX(bracing!$F$25:$O$25,1,AY55),0) -> 11
A56: 1 | B56: 2 | C56: 100 x 75 x 12 | D56: 12 | E56: 15.4 | F56: 10 | G56: 5 | H56: 19.7 | I56: 3.27 | J56: 2.03 | K56: 189 | L56: 90.2 | M56: 230 | N56: 49.5 | O56: 3.1 | P56: 2.14 | Q56: 3.42 | R56: 1.59 | S56: 28.1 | T56: 16.5 | U56: 0.54 | V56: 10 | W56: 2.1 | Y56: 2.64 | Z56: 3.46 | AG56: =AG53+AH55 -> 20.41666667 | AY56: 4 | AZ56: =IF(AY56<=bracing!$AF$32,INDEX(bracing!$F$22:$O$22,1,AY56)&"kN","") -> 20kN | BA56: -1.333333333 | BB56: =IF(AY56<=bracing!$AF$32,INDEX(bracing!$F$25:$O$25,1,AY56),0) -> 14
A57: 1 | B57: 2 | C57: 125 x 75 x 8 | D57: 8 | E57: 12.2 | F57: 11 | G57: 5.5 | H57: 15.5 | I57: 4.14 | J57: 1.68 | K57: 247 | L57: 67.6 | M57: 274 | N57: 40.9 | O57: 4 | P57: 2.09 | Q57: 4.21 | R57: 1.63 | S57: 29.6 | T57: 11.6 | U57: 0.36 | V57: 3.62 | W57: 4 | Y57: 5.75 | Z57: 9.43 | AY57: 5 | AZ57: =IF(AY57<=bracing!$AF$32,INDEX(bracing!$F$22:$O$22,1,AY57)&"kN","") -> 20kN | BA57: -1.333333333 | BB57: =IF(AY57<=bracing!$AF$32,INDEX(bracing!$F$25:$O$25,1,AY57),0) -> 17
A58: 1 | B58: 2 | C58: 125 x 75 x 10 | D58: 10 | E58: 15 | F58: 11 | G58: 5.5 | H58: 19.1 | I58: 4.23 | J58: 1.76 | K58: 302 | L58: 82.1 | M58: 334 | N58: 49.9 | O58: 3.97 | P58: 2.07 | Q58: 4.18 | R58: 1.61 | S58: 36.5 | T58: 14.3 | U58: 0.357 | V58: 6.87 | W58: 3.21 | Y58: 4.55 | Z58: 7.5 | AY58: 6 | AZ58: =IF(AY58<=bracing!$AF$32,INDEX(bracing!$F$22:$O$22,1,AY58)&"kN","") -> 20kN | BA58: -1.333333333 | BB58: =IF(AY58<=bracing!$AF$32,INDEX(bracing!$F$25:$O$25,1,AY58),0) -> 20
A59: 1 | B59: 2 | C59: 125 x 75 x 12 | D59: 12 | E59: 17.8 | F59: 11 | G59: 5.5 | H59: 22.7 | I59: 4.31 | J59: 1.84 | K59: 354 | L59: 95.5 | M59: 391 | N59: 58.5 | O59: 3.95 | P59: 2.05 | Q59: 4.15 | R59: 1.61 | S59: 43.2 | T59: 16.9 | U59: 0.354 | V59: 11.6 | W59: 2.66 | Y59: 3.73 | Z59: 6.23 | AY59: 7 | AZ59: =IF(AY59<=bracing!$AF$32,INDEX(bracing!$F$22:$O$22,1,AY59)&"kN","") ->  | BA59: -1.333333333 | BB59: =IF(AY59<=bracing!$AF$32,INDEX(bracing!$F$25:$O$25,1,AY59),0) -> 0
A60: 1 | B60: 2 | C60: 150 x 75 x 10 | D60: 10 | E60: 17 | F60: 12 | G60: 6 | H60: 21.7 | I60: 5.31 | J60: 1.61 | K60: 501 | L60: 85.4 | M60: 531 | N60: 55.1 | O60: 4.81 | P60: 1.99 | Q60: 4.95 | R60: 1.6 | S60: 51.7 | T60: 14.5 | U60: 0.261 | V60: 7.8 | W60: 3.95 | Y60: 5.83 | Z60: 10.4 | AY60: 8 | AZ60: =IF(AY60<=bracing!$AF$32,INDEX(bracing!$F$22:$O$22,1,AY60)&"kN","") ->  | BA60: -1.333333333 | BB60: =IF(AY60<=bracing!$AF$32,INDEX(bracing!$F$25:$O$25,1,AY60),0) -> 0
A61: 1 | B61: 2 | C61: 150 x 75 x 12 | D61: 12 | E61: 20.2 | F61: 12 | G61: 6 | H61: 25.7 | I61: 5.4 | J61: 1.69 | K61: 589 | L61: 99.6 | M61: 623 | N61: 64.7 | O61: 4.78 | P61: 1.97 | Q61: 4.92 | R61: 1.59 | S61: 61.3 | T61: 17.1 | U61: 0.258 | V61: 13.2 | W61: 3.3 | Y61: 4.79 | Z61: 8.6 | AY61: 9 | AZ61: =IF(AY61<=bracing!$AF$32,INDEX(bracing!$F$22:$O$22,1,AY61)&"kN","") ->  | BA61: -1.333333333 | BB61: =IF(AY61<=bracing!$AF$32,INDEX(bracing!$F$25:$O$25,1,AY61),0) -> 0
A62: 1 | B62: 2 | C62: 150 x 75 x 15 | D62: 15 | E62: 24.8 | F62: 12 | G62: 6 | H62: 31.7 | I62: 5.52 | J62: 1.81 | K62: 713 | L62: 119 | M62: 753 | N62: 78.6 | O62: 4.75 | P62: 1.94 | Q62: 4.88 | R62: 1.58 | S62: 75.2 | T62: 21 | U62: 0.253 | V62: 25.1 | W62: 2.62 | Y62: 3.74 | Z62: 6.84 | AY62: 10 | AZ62: =IF(AY62<=bracing!$AF$32,INDEX(bracing!$F$22:$O$22,1,AY62)&"kN","") ->  | BA62: -1.333333333 | BB62: =IF(AY62<=bracing!$AF$32,INDEX(bracing!$F$25:$O$25,1,AY62),0) -> 0
A63: 1 | B63: 2 | C63: 150 x 90 x 10 | D63: 10 | E63: 18.2 | F63: 12 | G63: 6 | H63: 23.2 | I63: 5 | J63: 2.04 | K63: 533 | L63: 146 | M63: 591 | N63: 88.3 | O63: 4.8 | P63: 2.51 | Q63: 5.05 | R63: 1.95 | S63: 53.3 | T63: 21 | U63: 0.36 | V63: 8.3 | W63: 3.89 | Y63: 5.56 | Z63: 9.03
A64: 1 | B64: 2 | C64: 150 x 90 x 12 | D64: 12 | E64: 21.6 | F64: 12 | G64: 6 | H64: 27.5 | I64: 5.08 | J64: 2.12 | K64: 627 | L64: 171 | M64: 694 | N64: 104 | O64: 4.78 | P64: 2.49 | Q64: 5.02 | R64: 1.94 | S64: 63.3 | T64: 24.8 | U64: 0.358 | V64: 14.1 | W64: 3.24 | Y64: 4.58 | Z64: 7.5
A65: 1 | B65: 2 | C65: 150 x 90 x 15 | D65: 15 | E65: 26.6 | F65: 12 | G65: 6 | H65: 33.9 | I65: 5.21 | J65: 2.23 | K65: 761 | L65: 205 | M65: 841 | N65: 126 | O65: 4.74 | P65: 2.46 | Q65: 4.98 | R65: 1.93 | S65: 77.7 | T65: 30.4 | U65: 0.354 | V65: 26.8 | W65: 2.58 | Y65: 3.59 | Z65: 5.96
A66: 1 | B66: 2 | C66: 200 x 100 x 10 | D66: 10 | E66: 23 | F66: 15 | G66: 7.5 | H66: 29.2 | I66: 6.93 | J66: 2.01 | K66: 1219 | L66: 210 | M66: 1290 | N66: 135 | O66: 6.46 | P66: 2.68 | Q66: 6.65 | R66: 2.15 | S66: 93.3 | T66: 26.3 | U66: 0.263 | V66: 10.66 | W66: 5.26 | Y66: 7.92 | Z66: 13.9
A67: 1 | B67: 2 | C67: 200 x 100 x 12 | D67: 12 | E67: 27.3 | F67: 15 | G67: 7.5 | H67: 34.8 | I67: 7.03 | J67: 2.1 | K67: 1441 | L67: 247 | M67: 1530 | N67: 159 | O67: 6.43 | P67: 2.67 | Q67: 6.63 | R67: 2.14 | S67: 111 | T67: 31.3 | U67: 0.262 | V67: 18 | W67: 4.42 | Y67: 6.57 | Z67: 11.5
A68: 1 | B68: 2 | C68: 200 x 100 x 15 | D68: 15 | E68: 33.7 | F68: 15 | G68: 7.5 | H68: 43 | I68: 7.16 | J68: 2.22 | K68: 1759 | L68: 299 | M68: 1860 | N68: 193 | O68: 6.4 | P68: 2.64 | Q68: 6.59 | R68: 2.12 | S68: 137 | T68: 38.4 | U68: 0.26 | V68: 34.3 | W68: 3.54 | Y68: 5.17 | Z68: 9.19
A69: 1 | B69: 2 | C69: 200 x 150 x 12 | D69: 12 | E69: 32 | F69: 15 | G69: 7.5 | H69: 40.8 | I69: 6.08 | J69: 3.61 | K69: 1653 | L69: 803 | M69: 2030 | N69: 430 | O69: 6.36 | P69: 4.44 | Q69: 7.04 | R69: 3.25 | S69: 119 | T69: 70.5 | U69: 0.552 | V69: 20.9 | W69: 4.43 | Y69: 5.7 | Z69: 6.97
A70: 1 | B70: 2 | C70: 200 x 150 x 15 | D70: 15 | E70: 39.6 | F70: 15 | G70: 7.5 | H70: 50.5 | I70: 6.21 | J70: 3.73 | K70: 2023 | L70: 979 | M70: 2480 | N70: 526 | O70: 6.33 | P70: 4.4 | Q70: 7 | R70: 3.23 | S70: 147 | T70: 86.9 | U70: 0.551 | V70: 39.9 | W70: 3.53 | Y70: 4.5 | Z70: 5.55
A71: 2 | B71: 2 | C71: 200 x 150 x 18 | D71: 18 | E71: 47.1 | F71: 15 | G71: 7.5 | H71: 60 | I71: 6.33 | J71: 3.85 | K71: 2376 | L71: 1146 | M71: 2920 | N71: 623 | O71: 6.29 | P71: 4.37 | Q71: 6.97 | R71: 3.22 | S71: 174 | T71: 103 | U71: 0.549 | V71: 67.9 | W71: 2.93 | Y71: 3.72 | Z71: 4.6
D76: HOT FINISHED
D77: RECTANGULAR HOLLOW SECTIONS
D79: Dimensions and properties
C81: Section | G81: Mass | H81: Area | I81: Ratios for | K81: Second Moment | M81: Radius of | O81: Elastic | Q81: Plastic | S81: Torsional | U81: Surface
C82: Designation | G82: per | H82: of | I82: Local Buckling | K82: of Area | M82: Gyration | O82: Modulus | Q82: Modulus | S82: Constants | U82: Area
C83: Size | D83: Thickness | G83: Metre | H83: Section | K83: Axis | L83: Axis | M83: Axis | N83: Axis | O83: Axis | P83: Axis | Q83: Axis | R83: Axis | U83: Per | V83: Per
K84: x-x | L84: y-y | M84: x-x | N84: y-y | O84: x-x | P84: y-y | Q84: x-x | R84: y-y | U84: Metre | V84: Tonne
C85: D x B | D85: t | H85: A | I85: cw/t (1) | J85: cf/t (1) | S85: J | T85: C
C86: mm | D86: mm | G86: kg/m | H86: cm2 | K86: cm4 | L86: cm4 | M86: cm | N86: cm | O86: cm3 | P86: cm3 | Q86: cm3 | R86: cm3 | S86: cm4 | T86: cm3 | U86: m2 | V86: m2
A87: 1 | B87: 2 | C87: 50 x 30 x 3 | E87: 3 | F87: # | G87: 3.41 | H87: 4.34 | I87: 13.7 | J87: 7 | K87: 13.6 | L87: 5.94 | M87: 1.77 | N87: 1.17 | O87: 5.43 | P87: 3.96 | Q87: 6.88 | R87: 4.76 | S87: 13.5 | T87: 6.51 | U87: 0.152 | V87: 44.5
A88: 1 | B88: 2 | C88: 50 x 30 x 3.2 | E88: 3.2 | G88: 3.61 | H88: 4.6 | I88: 12.6 | J88: 6.38 | K88: 14.2 | L88: 6.2 | M88: 1.76 | N88: 1.16 | O88: 5.68 | P88: 4.13 | Q88: 7.25 | R88: 5 | S88: 14.2 | T88: 6.8 | U88: 0.152 | V88: 42.1
A89: 1 | B89: 2 | C89: 50 x 30 x 3.6 | E89: 3.6 | F89: # | G89: 4.01 | H89: 5.1 | I89: 10.9 | J89: 5.33 | K89: 15.4 | L89: 6.67 | M89: 1.74 | N89: 1.14 | O89: 6.16 | P89: 4.45 | Q89: 7.94 | R89: 5.46 | S89: 15.4 | T89: 7.31 | U89: 0.151 | V89: 37.8
A90: 1 | B90: 2 | C90: 50 x 30 x 4 | E90: 4 | G90: 4.39 | H90: 5.59 | I90: 9.5 | J90: 4.5 | K90: 16.5 | L90: 7.08 | M90: 1.72 | N90: 1.13 | O90: 6.6 | P90: 4.72 | Q90: 8.59 | R90: 5.88 | S90: 16.6 | T90: 7.77 | U90: 0.15 | V90: 34.2
A91: 1 | B91: 2 | C91: 50 x 30 x 5 | E91: 5 | G91: 5.28 | H91: 6.73 | I91: 7 | J91: 3 | K91: 18.7 | L91: 7.89 | M91: 1.67 | N91: 1.08 | O91: 7.49 | P91: 5.26 | Q91: 10 | R91: 6.8 | S91: 19 | T91: 8.67 | U91: 0.147 | V91: 27.8
A92: 1 | B92: 2 | C92: 60 x 40 x 3 | E92: 3 | F92: # | G92: 4.35 | H92: 5.54 | I92: 17 | J92: 10.3 | K92: 26.5 | L92: 13.9 | M92: 2.18 | N92: 1.58 | O92: 8.82 | P92: 6.95 | Q92: 10.9 | R92: 8.19 | S92: 29.2 | T92: 11.2 | U92: 0.192 | V92: 44.2
A93: 1 | B93: 2 | C93: 60 x 40 x 3.2 | E93: 3.2 | G93: 4.62 | H93: 5.88 | I93: 15.8 | J93: 9.5 | K93: 27.8 | L93: 14.6 | M93: 2.18 | N93: 1.57 | O93: 9.27 | P93: 7.29 | Q93: 11.5 | R93: 8.64 | S93: 30.8 | T93: 11.7 | U93: 0.192 | V93: 41.7
A94: 1 | B94: 2 | C94: 60 x 40 x 3.6 | E94: 3.6 | F94: # | G94: 5.14 | H94: 6.54 | I94: 13.7 | J94: 8.11 | K94: 30.4 | L94: 15.9 | M94: 2.16 | N94: 1.56 | O94: 10.1 | P94: 7.93 | Q94: 12.7 | R94: 9.5 | S94: 33.8 | T94: 12.8 | U94: 0.191 | V94: 37.2
A95: 1 | B95: 2 | C95: 60 x 40 x 4 | E95: 4 | G95: 5.64 | H95: 7.19 | I95: 12 | J95: 7 | K95: 32.8 | L95: 17 | M95: 2.14 | N95: 1.54 | O95: 10.9 | P95: 8.52 | Q95: 13.8 | R95: 10.3 | S95: 36.7 | T95: 13.7 | U95: 0.19 | V95: 33.6
A96: 1 | B96: 2 | C96: 60 x 40 x 5 | E96: 5 | G96: 6.85 | H96: 8.73 | I96: 9 | J96: 5 | K96: 38.1 | L96: 19.5 | M96: 2.09 | N96: 1.5 | O96: 12.7 | P96: 9.77 | Q96: 16.4 | R96: 12.2 | S96: 43 | T96: 15.7 | U96: 0.187 | V96: 27.3
A97: 1 | B97: 2 | C97: 60 x 40 x 6.3 | E97: 6.3 | G97: 8.31 | H97: 10.6 | I97: 6.52 | J97: 3.35 | K97: 43.4 | L97: 21.9 | M97: 2.02 | N97: 1.44 | O97: 14.5 | P97: 11 | Q97: 19.2 | R97: 14.2 | S97: 49.5 | T97: 17.6 | U97: 0.184 | V97: 22.1
A98: 1 | B98: 2 | C98: 80 x 40 x 3 | E98: 3 | F98: # | G98: 5.29 | H98: 6.74 | I98: 23.7 | J98: 10.3 | K98: 54.2 | L98: 18 | M98: 2.84 | N98: 1.63 | O98: 13.6 | P98: 9 | Q98: 17.1 | R98: 10.4 | S98: 43.8 | T98: 15.3 | U98: 0.232 | V98: 43.8
A99: 1 | B99: 2 | C99: 80 x 40 x 3.2 | E99: 3.2 | G99: 5.62 | H99: 7.16 | I99: 22 | J99: 9.5 | K99: 57.2 | L99: 18.9 | M99: 2.83 | N99: 1.63 | O99: 14.3 | P99: 9.46 | Q99: 18 | R99: 11 | S99: 46.2 | T99: 16.1 | U99: 0.232 | V99: 41.3
A100: 1 | B100: 2 | C100: 80 x 40 x 3.6 | E100: 3.6 | F100: # | G100: 6.27 | H100: 7.98 | I100: 19.2 | J100: 8.11 | K100: 62.8 | L100: 20.6 | M100: 2.81 | N100: 1.61 | O100: 15.7 | P100: 10.3 | Q100: 20 | R100: 12.1 | S100: 50.8 | T100: 17.5 | U100: 0.231 | V100: 37
A101: 1 | B101: 2 | C101: 80 x 40 x 4 | E101: 4 | G101: 6.9 | H101: 8.79 | I101: 17 | J101: 7 | K101: 68.2 | L101: 22.2 | M101: 2.79 | N101: 1.59 | O101: 17.1 | P101: 11.1 | Q101: 21.8 | R101: 13.2 | S101: 55.2 | T101: 18.9 | U101: 0.23 | V101: 33.4
A102: 1 | B102: 2 | C102: 80 x 40 x 5 | E102: 5 | G102: 8.42 | H102: 10.7 | I102: 13 | J102: 5 | K102: 80.3 | L102: 25.7 | M102: 2.74 | N102: 1.55 | O102: 20.1 | P102: 12.9 | Q102: 26.1 | R102: 15.7 | S102: 65.1 | T102: 21.9 | U102: 0.227 | V102: 27
A103: 1 | B103: 2 | C103: 80 x 40 x 6.3 | E103: 6.3 | G103: 10.3 | H103: 13.1 | I103: 9.7 | J103: 3.35 | K103: 93.3 | L103: 29.2 | M103: 2.67 | N103: 1.49 | O103: 23.3 | P103: 14.6 | Q103: 31.1 | R103: 18.4 | S103: 75.6 | T103: 24.8 | U103: 0.224 | V103: 21.8
A104: 1 | B104: 2 | C104: 80 x 40 x 7.1 | E104: 7.1 | F104: # | G104: 11.4 | H104: 14.5 | I104: 8.27 | J104: 2.63 | K104: 99.8 | L104: 30.7 | M104: 2.63 | N104: 1.46 | O104: 25 | P104: 15.4 | Q104: 33.8 | R104: 19.8 | S104: 80.9 | T104: 26.2 | U104: 0.222 | V104: 19.5
A105: 1 | B105: 2 | C105: 80 x 40 x 8 | E105: 8 | G105: 12.5 | H105: 16 | I105: 7 | J105: 2 | K105: 106 | L105: 32.1 | M105: 2.58 | N105: 1.42 | O105: 26.5 | P105: 16.1 | Q105: 36.5 | R105: 21.2 | S105: 85.8 | T105: 27.4 | U105: 0.219 | V105: 17.5
A106: 1 | B106: 2 | C106: 90 x 50 x 3 | E106: 3 | F106: # | G106: 6.24 | H106: 7.94 | I106: 27 | J106: 13.7 | K106: 84.4 | L106: 33.5 | M106: 3.26 | N106: 2.05 | O106: 18.8 | P106: 13.4 | Q106: 23.2 | R106: 15.3 | S106: 76.5 | T106: 22.4 | U106: 0.272 | V106: 43.5
A107: 1 | B107: 2 | C107: 90 x 50 x 3.2 | E107: 3.2 | G107: 6.63 | H107: 8.44 | I107: 25.1 | J107: 12.6 | K107: 89.1 | L107: 35.3 | M107: 3.25 | N107: 2.04 | O107: 19.8 | P107: 14.1 | Q107: 24.6 | R107: 16.2 | S107: 80.9 | T107: 23.6 | U107: 0.272 | V107: 41.1
A108: 1 | B108: 2 | C108: 90 x 50 x 3.6 | E108: 3.6 | F108: # | G108: 7.4 | H108: 9.42 | I108: 22 | J108: 10.9 | K108: 98.3 | L108: 38.7 | M108: 3.23 | N108: 2.03 | O108: 21.8 | P108: 15.5 | Q108: 27.2 | R108: 18 | S108: 89.4 | T108: 25.9 | U108: 0.271 | V108: 36.6
A109: 1 | B109: 2 | C109: 90 x 50 x 4 | E109: 4 | G109: 8.15 | H109: 10.4 | I109: 19.5 | J109: 9.5 | K109: 107 | L109: 41.9 | M109: 3.21 | N109: 2.01 | O109: 23.8 | P109: 16.8 | Q109: 29.8 | R109: 19.6 | S109: 97.5 | T109: 28 | U109: 0.27 | V109: 33.2
A110: 1 | B110: 2 | C110: 90 x 50 x 5 | E110: 5 | G110: 9.99 | H110: 12.7 | I110: 15 | J110: 7 | K110: 127 | L110: 49.2 | M110: 3.16 | N110: 1.97 | O110: 28.3 | P110: 19.7 | Q110: 36 | R110: 23.5 | S110: 116 | T110: 32.9 | U110: 0.267 | V110: 26.7
A111: 1 | B111: 2 | C111: 90 x 50 x 6.3 | E111: 6.3 | G111: 12.3 | H111: 15.6 | I111: 11.3 | J111: 4.94 | K111: 150 | L111: 57 | M111: 3.1 | N111: 1.91 | O111: 33.3 | P111: 22.8 | Q111: 43.2 | R111: 28 | S111: 138 | T111: 38.1 | U111: 0.264 | V111: 21.5
A112: 1 | B112: 2 | C112: 90 x 50 x 7.1 | E112: 7.1 | F112: # | G112: 13.6 | H112: 17.3 | I112: 9.68 | J112: 4.04 | K112: 162 | L112: 60.9 | M112: 3.06 | N112: 1.88 | O112: 36 | P112: 24.4 | Q112: 47.2 | R112: 30.5 | S112: 149 | T112: 40.7 | U112: 0.262 | V112: 19.3
A113: 1 | B113: 2 | C113: 90 x 50 x 8 | E113: 8 | G113: 15 | H113: 19.2 | I113: 8.25 | J113: 3.25 | K113: 174 | L113: 64.6 | M113: 3.01 | N113: 1.84 | O113: 38.6 | P113: 25.8 | Q113: 51.4 | R113: 32.9 | S113: 160 | T113: 43.2 | U113: 0.259 | V113: 17.2
A114: 1 | B114: 2 | C114: 100 x 50 x 3 | E114: 3 | F114: # | G114: 6.71 | H114: 8.54 | I114: 30.3 | J114: 13.7 | K114: 110 | L114: 36.8 | M114: 3.58 | N114: 2.08 | O114: 21.9 | P114: 14.7 | Q114: 27.3 | R114: 16.8 | S114: 88.4 | T114: 25 | U114: 0.292 | V114: 43.5
A115: 1 | B115: 2 | C115: 100 x 50 x 3.2 | E115: 3.2 | G115: 7.13 | H115: 9.08 | I115: 28.3 | J115: 12.6 | K115: 116 | L115: 38.8 | M115: 3.57 | N115: 2.07 | O115: 23.2 | P115: 15.5 | Q115: 28.9 | R115: 17.7 | S115: 93.4 | T115: 26.4 | U115: 0.292 | V115: 40.9
A116: 1 | B116: 2 | C116: 100 x 50 x 3.6 | E116: 3.6 | F116: # | G116: 7.96 | H116: 10.1 | I116: 24.8 | J116: 10.9 | K116: 128 | L116: 42.6 | M116: 3.55 | N116: 2.05 | O116: 25.6 | P116: 17 | Q116: 32.1 | R116: 19.6 | S116: 103 | T116: 29 | U116: 0.291 | V116: 36.7
A117: 1 | B117: 2 | C117: 100 x 50 x 4 | E117: 4 | G117: 8.78 | H117: 11.2 | I117: 22 | J117: 9.5 | K117: 140 | L117: 46.2 | M117: 3.53 | N117: 2.03 | O117: 27.9 | P117: 18.5 | Q117: 35.2 | R117: 21.5 | S117: 113 | T117: 31.4 | U117: 0.29 | V117: 33.1
A118: 1 | B118: 2 | C118: 100 x 50 x 5 | E118: 5 | G118: 10.8 | H118: 13.7 | I118: 17 | J118: 7 | K118: 167 | L118: 54.3 | M118: 3.48 | N118: 1.99 | O118: 33.3 | P118: 21.7 | Q118: 42.6 | R118: 25.8 | S118: 135 | T118: 36.9 | U118: 0.287 | V118: 26.6
A119: 1 | B119: 2 | C119: 100 x 50 x 6.3 | E119: 6.3 | G119: 13.3 | H119: 16.9 | I119: 12.9 | J119: 4.94 | K119: 197 | L119: 63 | M119: 3.42 | N119: 1.93 | O119: 39.4 | P119: 25.2 | Q119: 51.3 | R119: 30.8 | S119: 160 | T119: 42.9 | U119: 0.284 | V119: 21.4
A120: 1 | B120: 2 | C120: 100 x 50 x 7.1 | E120: 7.1 | F120: # | G120: 14.7 | H120: 18.7 | I120: 11.1 | J120: 4.04 | K120: 214 | L120: 67.5 | M120: 3.38 | N120: 1.9 | O120: 42.7 | P120: 27 | Q120: 56.3 | R120: 33.5 | S120: 173 | T120: 46 | U120: 0.282 | V120: 19.2
A121: 1 | B121: 2 | C121: 100 x 50 x 8 | E121: 8 | G121: 16.3 | H121: 20.8 | I121: 9.5 | J121: 3.25 | K121: 230 | L121: 71.7 | M121: 3.33 | N121: 1.86 | O121: 46 | P121: 28.7 | Q121: 61.4 | R121: 36.3 | S121: 186 | T121: 48.9 | U121: 0.279 | V121: 17.1
A122: 1 | B122: 2 | C122: 100 x 50 x 8.8 | E122: 8.8 | F122: # | G122: 17.6 | H122: 22.5 | I122: 8.36 | J122: 2.68 | K122: 243 | L122: 74.8 | M122: 3.29 | N122: 1.82 | O122: 48.5 | P122: 29.9 | Q122: 65.6 | R122: 38.5 | S122: 197 | T122: 51.1 | U122: 0.277 | V122: 15.7
A123: 1 | B123: 2 | C123: 100 x 50 x 10 | E123: 10 | F123: # | G123: 19.6 | H123: 24.9 | I123: 7 | J123: 2 | K123: 259 | L123: 78.4 | M123: 3.22 | N123: 1.77 | O123: 51.8 | P123: 31.4 | Q123: 71.2 | R123: 41.4 | S123: 209 | T123: 53.6 | U123: 0.274 | V123: 14
A124: 1 | B124: 2 | C124: 100 x 60 x 3 | E124: 3 | F124: # | G124: 7.18 | H124: 9.14 | I124: 30.3 | J124: 17 | K124: 124 | L124: 55.7 | M124: 3.68 | N124: 2.47 | O124: 24.7 | P124: 18.6 | Q124: 30.2 | R124: 21.2 | S124: 121 | T124: 30.7 | U124: 0.312 | V124: 43.4
A125: 1 | B125: 2 | C125: 100 x 60 x 3.2 | E125: 3.2 | G125: 7.63 | H125: 9.72 | I125: 28.3 | J125: 15.8 | K125: 131 | L125: 58.8 | M125: 3.67 | N125: 2.46 | O125: 26.2 | P125: 19.6 | Q125: 32 | R125: 22.4 | S125: 129 | T125: 32.4 | U125: 0.312 | V125: 40.9
A126: 1 | B126: 2 | C126: 100 x 60 x 3.6 | E126: 3.6 | F126: # | G126: 8.53 | H126: 10.9 | I126: 24.8 | J126: 13.7 | K126: 145 | L126: 64.8 | M126: 3.65 | N126: 2.44 | O126: 28.9 | P126: 21.6 | Q126: 35.6 | R126: 24.9 | S126: 142 | T126: 35.6 | U126: 0.311 | V126: 36.4
A127: 1 | B127: 2 | C127: 100 x 60 x 4 | E127: 4 | G127: 9.41 | H127: 12 | I127: 22 | J127: 12 | K127: 158 | L127: 70.5 | M127: 3.63 | N127: 2.43 | O127: 31.6 | P127: 23.5 | Q127: 39.1 | R127: 27.3 | S127: 156 | T127: 38.7 | U127: 0.31 | V127: 32.9
A128: 1 | B128: 2 | C128: 100 x 60 x 5 | E128: 5 | G128: 11.6 | H128: 14.7 | I128: 17 | J128: 9 | K128: 189 | L128: 83.6 | M128: 3.58 | N128: 2.38 | O128: 37.8 | P128: 27.9 | Q128: 47.4 | R128: 32.9 | S128: 188 | T128: 45.9 | U128: 0.307 | V128: 26.6
A129: 1 | B129: 2 | C129: 100 x 60 x 6.3 | E129: 6.3 | G129: 14.2 | H129: 18.1 | I129: 12.9 | J129: 6.52 | K129: 225 | L129: 98.1 | M129: 3.52 | N129: 2.33 | O129: 45 | P129: 32.7 | Q129: 57.3 | R129: 39.5 | S129: 224 | T129: 53.8 | U129: 0.304 | V129: 21.3
A130: 1 | B130: 2 | C130: 100 x 60 x 7.1 | E130: 7.1 | F130: # | G130: 15.8 | H130: 20.2 | I130: 11.1 | J130: 5.45 | K130: 244 | L130: 106 | M130: 3.48 | N130: 2.29 | O130: 48.8 | P130: 35.3 | Q130: 62.9 | R130: 43.2 | S130: 245 | T130: 58 | U130: 0.302 | V130: 19.1
A131: 1 | B131: 2 | C131: 100 x 60 x 8 | E131: 8 | G131: 17.5 | H131: 22.4 | I131: 9.5 | J131: 4.5 | K131: 264 | L131: 113 | M131: 3.44 | N131: 2.25 | O131: 52.8 | P131: 37.8 | Q131: 68.7 | R131: 47.1 | S131: 265 | T131: 62.2 | U131: 0.299 | V131: 17
A132: 1 | B132: 2 | C132: 100 x 60 x 8.8 | E132: 8.8 | F132: # | G132: 19 | H132: 24.2 | I132: 8.36 | J132: 3.82 | K132: 279 | L132: 119 | M132: 3.4 | N132: 2.22 | O132: 55.9 | P132: 39.7 | Q132: 73.6 | R132: 50.2 | S132: 282 | T132: 65.4 | U132: 0.297 | V132: 15.6
A133: 1 | B133: 2 | C133: 100 x 60 x 10 | E133: 10 | F133: # | G133: 21.1 | H133: 26.9 | I133: 7 | J133: 3 | K133: 299 | L133: 126 | M133: 3.33 | N133: 2.16 | O133: 59.9 | P133: 42.1 | Q133: 80.2 | R133: 54.4 | S133: 304 | T133: 69.3 | U133: 0.294 | V133: 13.9
A134: 1 | B134: 2 | C134: 120 x 60 x 3 | E134: 3 | F134: # | G134: 8.12 | H134: 10.3 | I134: 37 | J134: 17 | K134: 194 | L134: 65.5 | M134: 4.33 | N134: 2.52 | O134: 32.3 | P134: 21.8 | Q134: 40 | R134: 24.6 | S134: 156 | T134: 37.2 | U134: 0.352 | V134: 43.3
A135: 1 | B135: 2 | C135: 120 x 60 x 3.2 | E135: 3.2 | F135: # | G135: 8.64 | H135: 11 | I135: 34.5 | J135: 15.8 | K135: 205 | L135: 69.2 | M135: 4.32 | N135: 2.51 | O135: 34.2 | P135: 23.1 | Q135: 42.4 | R135: 26.1 | S135: 165 | T135: 39.2 | U135: 0.352 | V135: 40.8
A136: 1 | B136: 2 | C136: 120 x 60 x 3.6 | E136: 3.6 | F136: # | G136: 9.66 | H136: 12.3 | I136: 30.3 | J136: 13.7 | K136: 227 | L136: 76.3 | M136: 4.3 | N136: 2.49 | O136: 37.9 | P136: 25.4 | Q136: 47.2 | R136: 28.9 | S136: 183 | T136: 43.3 | U136: 0.351 | V136: 36.5
A137: 1 | B137: 2 | C137: 120 x 60 x 4 | E137: 4 | G137: 10.7 | H137: 13.6 | I137: 27 | J137: 12 | K137: 249 | L137: 83.1 | M137: 4.28 | N137: 2.47 | O137: 41.5 | P137: 27.7 | Q137: 51.9 | R137: 31.7 | S137: 201 | T137: 47.1 | U137: 0.35 | V137: 32.8
A138: 1 | B138: 2 | C138: 120 x 60 x 5 | E138: 5 | G138: 13.1 | H138: 16.7 | I138: 21 | J138: 9 | K138: 299 | L138: 98.8 | M138: 4.23 | N138: 2.43 | O138: 49.9 | P138: 32.9 | Q138: 63.1 | R138: 38.4 | S138: 242 | T138: 56 | U138: 0.347 | V138: 26.4
A139: 1 | B139: 2 | C139: 120 x 60 x 6.3 | E139: 6.3 | G139: 16.2 | H139: 20.7 | I139: 16 | J139: 6.52 | K139: 358 | L139: 116 | M139: 4.16 | N139: 2.37 | O139: 59.7 | P139: 38.8 | Q139: 76.7 | R139: 46.3 | S139: 290 | T139: 65.9 | U139: 0.344 | V139: 21.2
A140: 1 | B140: 2 | C140: 120 x 60 x 7.1 | E140: 7.1 | F140: # | G140: 18.1 | H140: 23 | I140: 13.9 | J140: 5.45 | K140: 391 | L140: 126 | M140: 4.12 | N140: 2.34 | O140: 65.2 | P140: 41.9 | Q140: 84.4 | R140: 50.8 | S140: 317 | T140: 71.3 | U140: 0.342 | V140: 18.9
A141: 1 | B141: 2 | C141: 120 x 60 x 8 | E141: 8 | G141: 20.1 | H141: 25.6 | I141: 12 | J141: 4.5 | K141: 425 | L141: 135 | M141: 4.08 | N141: 2.3 | O141: 70.8 | P141: 45 | Q141: 92.7 | R141: 55.4 | S141: 344 | T141: 76.6 | U141: 0.339 | V141: 16.9
A142: 1 | B142: 2 | C142: 120 x 60 x 8.8 | E142: 8.8 | F142: # | G142: 21.8 | H142: 27.8 | I142: 10.6 | J142: 3.82 | K142: 452 | L142: 142 | M142: 4.04 | N142: 2.27 | O142: 75.3 | P142: 47.5 | Q142: 99.6 | R142: 59.2 | S142: 366 | T142: 80.8 | U142: 0.337 | V142: 15.5
A143: 1 | B143: 2 | C143: 120 x 60 x 10 | E143: 10 | F143: # | G143: 24.3 | H143: 30.9 | I143: 9 | J143: 3 | K143: 488 | L143: 152 | M143: 3.97 | N143: 2.21 | O143: 81.4 | P143: 50.5 | Q143: 109 | R143: 64.4 | S143: 396 | T143: 86.1 | U143: 0.334 | V143: 13.8
A144: 1 | B144: 2 | C144: 120 x 60 x 12.5 | E144: 12.5 | F144: # | G144: 29.1 | H144: 37.1 | I144: 6.6 | J144: 1.8 | K144: 546 | L144: 165 | M144: 3.84 | N144: 2.11 | O144: 91.1 | P144: 54.9 | Q144: 126 | R144: 73.1 | S144: 442 | T144: 93.8 | U144: 0.328 | V144: 11.3
A145: 1 | B145: 2 | C145: 120 x 80 x 3.6 | E145: 3.6 | F145: # | G145: 10.8 | H145: 13.7 | I145: 30.3 | J145: 19.2 | K145: 276 | L145: 147 | M145: 4.48 | N145: 3.27 | O145: 46 | P145: 36.7 | Q145: 55.6 | R145: 42 | S145: 301 | T145: 59.5 | U145: 0.391 | V145: 36.2
A146: 1 | B146: 2 | C146: 120 x 80 x 4 | E146: 4 | G146: 11.9 | H146: 15.2 | I146: 27 | J146: 17 | K146: 303 | L146: 161 | M146: 4.46 | N146: 3.25 | O146: 50.4 | P146: 40.2 | Q146: 61.2 | R146: 46.1 | S146: 330 | T146: 65 | U146: 0.39 | V146: 32.7
A147: 1 | B147: 2 | C147: 120 x 80 x 5 | E147: 5 | G147: 14.7 | H147: 18.7 | I147: 21 | J147: 13 | K147: 365 | L147: 193 | M147: 4.42 | N147: 3.21 | O147: 60.9 | P147: 48.2 | Q147: 74.6 | R147: 56.1 | S147: 401 | T147: 77.9 | U147: 0.387 | V147: 26.3
A148: 1 | B148: 2 | C148: 120 x 80 x 6.3 | E148: 6.3 | G148: 18.2 | H148: 23.2 | I148: 16 | J148: 9.7 | K148: 440 | L148: 230 | M148: 4.36 | N148: 3.15 | O148: 73.3 | P148: 57.6 | Q148: 91 | R148: 68.2 | S148: 487 | T148: 92.9 | U148: 0.384 | V148: 21.1
A149: 1 | B149: 2 | C149: 120 x 80 x 7.1 | E149: 7.1 | F149: # | G149: 20.3 | H149: 25.8 | I149: 13.9 | J149: 8.27 | K149: 482 | L149: 251 | M149: 4.32 | N149: 3.12 | O149: 80.3 | P149: 62.8 | Q149: 100 | R149: 75.2 | S149: 535 | T149: 101 | U149: 0.382 | V149: 18.8
A150: 1 | B150: 2 | C150: 120 x 80 x 8 | E150: 8 | G150: 22.6 | H150: 28.8 | I150: 12 | J150: 7 | K150: 525 | L150: 273 | M150: 4.27 | N150: 3.08 | O150: 87.5 | P150: 68.1 | Q150: 111 | R150: 82.6 | S150: 587 | T150: 110 | U150: 0.379 | V150: 16.8
A151: 1 | B151: 2 | C151: 120 x 80 x 8.8 | E151: 8.8 | F151: # | G151: 24.5 | H151: 31.3 | I151: 10.6 | J151: 6.09 | K151: 561 | L151: 290 | M151: 4.24 | N151: 3.04 | O151: 93.5 | P151: 72.4 | Q151: 119 | R151: 88.7 | S151: 629 | T151: 117 | U151: 0.377 | V151: 15.3
A152: 1 | B152: 2 | C152: 120 x 80 x 10 | E152: 10 | G152: 27.4 | H152: 34.9 | I152: 9 | J152: 5 | K152: 609 | L152: 313 | M152: 4.18 | N152: 2.99 | O152: 102 | P152: 78.1 | Q152: 131 | R152: 97.3 | S152: 688 | T152: 126 | U152: 0.374 | V152: 13.7
A153: 1 | B153: 2 | C153: 120 x 80 x 12.5 | E153: 12.5 | F153: # | G153: 33 | H153: 42.1 | I153: 6.6 | J153: 3.4 | K153: 692 | L153: 349 | M153: 4.05 | N153: 2.88 | O153: 115 | P153: 87.4 | Q153: 153 | R153: 113 | S153: 789 | T153: 141 | U153: 0.368 | V153: 11.2
A154: 1 | B154: 2 | C154: 150 x 100 x 4 | E154: 4 | F154: # | G154: 15.1 | H154: 19.2 | I154: 34.5 | J154: 22 | K154: 607 | L154: 324 | M154: 5.63 | N154: 4.11 | O154: 81 | P154: 64.8 | Q154: 97.4 | R154: 73.6 | S154: 660 | T154: 105 | U154: 0.49 | V154: 32.5
A155: 1 | B155: 2 | C155: 150 x 100 x 5 | E155: 5 | G155: 18.6 | H155: 23.7 | I155: 27 | J155: 17 | K155: 739 | L155: 392 | M155: 5.58 | N155: 4.07 | O155: 98.5 | P155: 78.5 | Q155: 119 | R155: 90.1 | S155: 807 | T155: 127 | U155: 0.487 | V155: 26.2
A156: 1 | B156: 2 | C156: 150 x 100 x 6.3 | E156: 6.3 | G156: 23.1 | H156: 29.5 | I156: 20.8 | J156: 12.9 | K156: 898 | L156: 474 | M156: 5.52 | N156: 4.01 | O156: 120 | P156: 94.8 | Q156: 147 | R156: 110 | S156: 986 | T156: 153 | U156: 0.484 | V156: 20.9
A157: 1 | B157: 2 | C157: 150 x 100 x 7.1 | E157: 7.1 | F157: # | G157: 25.9 | H157: 32.9 | I157: 18.1 | J157: 11.1 | K157: 990 | L157: 520 | M157: 5.48 | N157: 3.97 | O157: 132 | P157: 104 | Q157: 163 | R157: 122 | S157: 1090 | T157: 168 | U157: 0.482 | V157: 18.7
A158: 1 | B158: 2 | C158: 150 x 100 x 8 | E158: 8 | G158: 28.9 | H158: 36.8 | I158: 15.8 | J158: 9.5 | K158: 1090 | L158: 569 | M158: 5.44 | N158: 3.94 | O158: 145 | P158: 114 | Q158: 180 | R158: 135 | S158: 1200 | T158: 183 | U158: 0.479 | V158: 16.6
A159: 1 | B159: 2 | C159: 150 x 100 x 8.8 | E159: 8.8 | F159: # | G159: 31.5 | H159: 40.1 | I159: 14 | J159: 8.36 | K159: 1170 | L159: 610 | M159: 5.4 | N159: 3.9 | O159: 156 | P159: 122 | Q159: 195 | R159: 146 | S159: 1300 | T159: 196 | U159: 0.477 | V159: 15.2
A160: 1 | B160: 2 | C160: 150 x 100 x 10 | E160: 10 | G160: 35.3 | H160: 44.9 | I160: 12 | J160: 7 | K160: 1280 | L160: 665 | M160: 5.34 | N160: 3.85 | O160: 171 | P160: 133 | Q160: 216 | R160: 161 | S160: 1430 | T160: 214 | U160: 0.474 | V160: 13.5
A161: 1 | B161: 2 | C161: 150 x 100 x 12.5 | E161: 12.5 | G161: 42.8 | H161: 54.6 | I161: 9 | J161: 5 | K161: 1490 | L161: 763 | M161: 5.22 | N161: 3.74 | O161: 198 | P161: 153 | Q161: 256 | R161: 190 | S161: 1680 | T161: 246 | U161: 0.468 | V161: 10.9
A162: 1 | B162: 2 | C162: 160 x 80 x 4 | E162: 4 | F162: # | G162: 14.4 | H162: 18.4 | I162: 37 | J162: 17 | K162: 612 | L162: 207 | M162: 5.77 | N162: 3.35 | O162: 76.5 | P162: 51.7 | Q162: 94.7 | R162: 58.3 | S162: 493 | T162: 88.1 | U162: 0.47 | V162: 32.6
A163: 1 | B163: 2 | C163: 160 x 80 x 5 | E163: 5 | G163: 17.8 | H163: 22.7 | I163: 29 | J163: 13 | K163: 744 | L163: 249 | M163: 5.72 | N163: 3.31 | O163: 93 | P163: 62.3 | Q163: 116 | R163: 71.1 | S163: 600 | T163: 106 | U163: 0.467 | V163: 26.2
A164: 1 | B164: 2 | C164: 160 x 80 x 6.3 | E164: 6.3 | G164: 22.2 | H164: 28.2 | I164: 22.4 | J164: 9.7 | K164: 903 | L164: 299 | M164: 5.66 | N164: 3.26 | O164: 113 | P164: 74.8 | Q164: 142 | R164: 86.8 | S164: 730 | T164: 127 | U164: 0.464 | V164: 20.9
A165: 1 | B165: 2 | C165: 160 x 80 x 7.1 | E165: 7.1 | F165: # | G165: 24.7 | H165: 31.5 | I165: 19.5 | J165: 8.27 | K165: 994 | L165: 327 | M165: 5.62 | N165: 3.22 | O165: 124 | P165: 81.7 | Q165: 158 | R165: 95.9 | S165: 804 | T165: 139 | U165: 0.462 | V165: 18.7
A166: 1 | B166: 2 | C166: 160 x 80 x 8 | E166: 8 | G166: 27.6 | H166: 35.2 | I166: 17 | J166: 7 | K166: 1090 | L166: 356 | M166: 5.57 | N166: 3.18 | O166: 136 | P166: 89 | Q166: 175 | R166: 106 | S166: 883 | T166: 151 | U166: 0.459 | V166: 16.6
A167: 1 | B167: 2 | C167: 160 x 80 x 8.8 | E167: 8.8 | F167: # | G167: 30.1 | H167: 38.3 | I167: 15.2 | J167: 6.09 | K167: 1170 | L167: 379 | M167: 5.53 | N167: 3.15 | O167: 147 | P167: 94.9 | Q167: 189 | R167: 114 | S167: 949 | T167: 161 | U167: 0.457 | V167: 15.2
A168: 1 | B168: 2 | C168: 160 x 80 x 10 | E168: 10 | G168: 33.7 | H168: 42.9 | I168: 13 | J168: 5 | K168: 1280 | L168: 411 | M168: 5.47 | N168: 3.1 | O168: 161 | P168: 103 | Q168: 209 | R168: 125 | S168: 1040 | T168: 175 | U168: 0.454 | V168: 13.5
A169: 1 | B169: 2 | C169: 160 x 80 x 12.5 | E169: 12.5 | G169: 40.9 | H169: 52.1 | I169: 9.8 | J169: 3.4 | K169: 1490 | L169: 465 | M169: 5.34 | N169: 2.99 | O169: 186 | P169: 116 | Q169: 247 | R169: 146 | S169: 1200 | T169: 198 | U169: 0.448 | V169: 11
A170: 1 | B170: 2 | C170: 180 x 60 x 4 | E170: 4 | F170: # | G170: 14.4 | H170: 18.4 | I170: 42 | J170: 12 | K170: 697 | L170: 121 | M170: 6.16 | N170: 2.56 | O170: 77.4 | P170: 40.3 | Q170: 99.8 | R170: 45.2 | S170: 341 | T170: 72.2 | U170: 0.47 | V170: 32.6
A171: 1 | B171: 2 | C171: 180 x 60 x 5 | E171: 5 | F171: # | G171: 17.8 | H171: 22.7 | I171: 33 | J171: 9 | K171: 846 | L171: 144 | M171: 6.1 | N171: 2.52 | O171: 94 | P171: 48.1 | Q171: 122 | R171: 54.9 | S171: 411 | T171: 86.3 | U171: 0.467 | V171: 26.2
A172: 1 | B172: 2 | C172: 180 x 60 x 6.3 | E172: 6.3 | F172: # | G172: 22.2 | H172: 28.2 | I172: 25.6 | J172: 6.52 | K172: 1030 | L172: 171 | M172: 6.03 | N172: 2.46 | O172: 114 | P172: 57 | Q172: 150 | R172: 66.6 | S172: 495 | T172: 102 | U172: 0.464 | V172: 20.9
A173: 1 | B173: 2 | C173: 180 x 60 x 7.1 | E173: 7.1 | F173: # | G173: 24.7 | H173: 31.5 | I173: 22.4 | J173: 5.45 | K173: 1130 | L173: 186 | M173: 5.99 | N173: 2.43 | O173: 126 | P173: 61.9 | Q173: 166 | R173: 73.3 | S173: 542 | T173: 111 | U173: 0.462 | V173: 18.7
A174: 1 | B174: 2 | C174: 180 x 60 x 8 | E174: 8 | F174: # | G174: 27.6 | H174: 35.2 | I174: 19.5 | J174: 4.5 | K174: 1240 | L174: 201 | M174: 5.94 | N174: 2.39 | O174: 138 | P174: 66.9 | Q174: 184 | R174: 80.4 | S174: 590 | T174: 120 | U174: 0.459 | V174: 16.6
A175: 1 | B175: 2 | C175: 180 x 60 x 8.8 | E175: 8.8 | F175: # | G175: 30.1 | H175: 38.3 | I175: 17.5 | J175: 3.82 | K175: 1330 | L175: 212 | M175: 5.89 | N175: 2.35 | O175: 148 | P175: 70.8 | Q175: 199 | R175: 86.2 | S175: 630 | T175: 127 | U175: 0.457 | V175: 15.2
A176: 1 | B176: 2 | C176: 180 x 60 x 10 | E176: 10 | F176: # | G176: 33.7 | H176: 42.9 | I176: 15 | J176: 3 | K176: 1460 | L176: 228 | M176: 5.83 | N176: 2.3 | O176: 162 | P176: 75.8 | Q176: 220 | R176: 94.4 | S176: 683 | T176: 137 | U176: 0.454 | V176: 13.5
A177: 1 | B177: 2 | C177: 180 x 60 x 12.5 | E177: 12.5 | F177: # | G177: 40.9 | H177: 52.1 | I177: 11.4 | J177: 1.8 | K177: 1680 | L177: 251 | M177: 5.68 | N177: 2.2 | O177: 187 | P177: 83.7 | Q177: 260 | R177: 109 | S177: 770 | T177: 151 | U177: 0.448 | V177: 11
A178: 1 | B178: 2 | C178: 180 x 100 x 4 | E178: 4 | F178: # | G178: 16.9 | H178: 21.6 | I178: 42 | J178: 22 | K178: 945 | L178: 379 | M178: 6.61 | N178: 4.19 | O178: 105 | P178: 75.9 | Q178: 128 | R178: 85.2 | S178: 852 | T178: 127 | U178: 0.55 | V178: 32.5
A179: 1 | B179: 2 | C179: 180 x 100 x 5 | E179: 5 | F179: # | G179: 21 | H179: 26.7 | I179: 33 | J179: 17 | K179: 1150 | L179: 460 | M179: 6.57 | N179: 4.15 | O179: 128 | P179: 92 | Q179: 157 | R179: 104 | S179: 1040 | T179: 154 | U179: 0.547 | V179: 26.1
A180: 1 | B180: 2 | C180: 180 x 100 x 6.3 | E180: 6.3 | F180: # | G180: 26.1 | H180: 33.3 | I180: 25.6 | J180: 12.9 | K180: 1410 | L180: 557 | M180: 6.5 | N180: 4.09 | O180: 156 | P180: 111 | Q180: 194 | R180: 128 | S180: 1280 | T180: 186 | U180: 0.544 | V180: 20.8
A181: 1 | B181: 2 | C181: 180 x 100 x 7.1 | E181: 7.1 | F181: # | G181: 29.2 | H181: 37.2 | I181: 22.4 | J181: 11.1 | K181: 1560 | L181: 613 | M181: 6.47 | N181: 4.06 | O181: 173 | P181: 123 | Q181: 215 | R181: 142 | S181: 1410 | T181: 205 | U181: 0.542 | V181: 18.5
A182: 1 | B182: 2 | C182: 180 x 100 x 8 | E182: 8 | F182: # | G182: 32.6 | H182: 41.6 | I182: 19.5 | J182: 9.5 | K182: 1710 | L182: 671 | M182: 6.42 | N182: 4.02 | O182: 190 | P182: 134 | Q182: 239 | R182: 157 | S182: 1560 | T182: 224 | U182: 0.539 | V182: 16.5
A183: 1 | B183: 2 | C183: 180 x 100 x 8.8 | E183: 8.8 | F183: # | G183: 35.6 | H183: 45.4 | I183: 17.5 | J183: 8.36 | K183: 1850 | L183: 720 | M183: 6.38 | N183: 3.98 | O183: 205 | P183: 144 | Q183: 259 | R183: 170 | S183: 1690 | T183: 240 | U183: 0.537 | V183: 15.1
A184: 1 | B184: 2 | C184: 180 x 100 x 10 | E184: 10 | F184: # | G184: 40 | H184: 50.9 | I184: 15 | J184: 7 | K184: 2040 | L184: 787 | M184: 6.32 | N184: 3.93 | O184: 226 | P184: 157 | Q184: 288 | R184: 188 | S184: 1860 | T184: 263 | U184: 0.534 | V184: 13.4
A185: 1 | B185: 2 | C185: 180 x 100 x 12.5 | E185: 12.5 | F185: # | G185: 48.7 | H185: 62.1 | I185: 11.4 | J185: 5 | K185: 2390 | L185: 908 | M185: 6.2 | N185: 3.82 | O185: 265 | P185: 182 | Q185: 344 | R185: 223 | S185: 2190 | T185: 303 | U185: 0.528 | V185: 10.8
A186: 1 | B186: 2 | C186: 200 x 100 x 4 | E186: 4 | F186: # | G186: 18.2 | H186: 23.2 | I186: 47 | J186: 22 | K186: 1220 | L186: 416 | M186: 7.26 | N186: 4.24 | O186: 122 | P186: 83.2 | Q186: 150 | R186: 92.8 | S186: 983 | T186: 142 | U186: 0.59 | V186: 32.4
A187: 1 | B187: 2 | C187: 200 x 100 x 5 | E187: 5 | G187: 22.6 | H187: 28.7 | I187: 37 | J187: 17 | K187: 1500 | L187: 505 | M187: 7.21 | N187: 4.19 | O187: 149 | P187: 101 | Q187: 185 | R187: 114 | S187: 1200 | T187: 172 | U187: 0.587 | V187: 26
A188: 1 | B188: 2 | C188: 200 x 100 x 6.3 | E188: 6.3 | G188: 28.1 | H188: 35.8 | I188: 28.7 | J188: 12.9 | K188: 1830 | L188: 613 | M188: 7.15 | N188: 4.14 | O188: 183 | P188: 123 | Q188: 228 | R188: 140 | S188: 1480 | T188: 208 | U188: 0.584 | V188: 20.8
A189: 1 | B189: 2 | C189: 200 x 100 x 7.1 | E189: 7.1 | F189: # | G189: 31.4 | H189: 40 | I189: 25.2 | J189: 11.1 | K189: 2020 | L189: 674 | M189: 7.11 | N189: 4.1 | O189: 202 | P189: 135 | Q189: 254 | R189: 155 | S189: 1630 | T189: 229 | U189: 0.582 | V189: 18.5
A190: 1 | B190: 2 | C190: 200 x 100 x 8 | E190: 8 | G190: 35.1 | H190: 44.8 | I190: 22 | J190: 9.5 | K190: 2230 | L190: 739 | M190: 7.06 | N190: 4.06 | O190: 223 | P190: 148 | Q190: 282 | R190: 172 | S190: 1800 | T190: 251 | U190: 0.579 | V190: 16.5
A191: 1 | B191: 2 | C191: 200 x 100 x 8.8 | E191: 8.8 | F191: # | G191: 38.4 | H191: 48.9 | I191: 19.7 | J191: 8.36 | K191: 2410 | L191: 793 | M191: 7.02 | N191: 4.03 | O191: 241 | P191: 159 | Q191: 306 | R191: 186 | S191: 1950 | T191: 270 | U191: 0.577 | V191: 15.1
A192: 1 | B192: 2 | C192: 200 x 100 x 10 | E192: 10 | G192: 43.1 | H192: 54.9 | I192: 17 | J192: 7 | K192: 2660 | L192: 869 | M192: 6.96 | N192: 3.98 | O192: 266 | P192: 174 | Q192: 341 | R192: 206 | S192: 2160 | T192: 295 | U192: 0.574 | V192: 13.3
A193: 1 | B193: 2 | C193: 200 x 100 x 12.5 | E193: 12.5 | G193: 52.7 | H193: 67.1 | I193: 13 | J193: 5 | K193: 3140 | L193: 1000 | M193: 6.84 | N193: 3.87 | O193: 314 | P193: 201 | Q193: 408 | R193: 245 | S193: 2540 | T193: 341 | U193: 0.568 | V193: 10.8
A194: 1 | B194: 2 | C194: 200 x 100 x 14.2 | E194: 14.2 | F194: # | G194: 58.9 | H194: 75 | I194: 11.1 | J194: 4.04 | K194: 3420 | L194: 1080 | M194: 6.75 | N194: 3.8 | O194: 342 | P194: 216 | Q194: 450 | R194: 268 | S194: 2770 | T194: 368 | U194: 0.563 | V194: 9.57
A195: 1 | B195: 2 | C195: 200 x 100 x 16 | E195: 16 | F195: # r | G195: 65.2 | H195: 83 | I195: 9.5 | J195: 3.25 | K195: 3680 | L195: 1150 | M195: 6.66 | N195: 3.72 | O195: 368 | P195: 229 | Q195: 491 | R195: 290 | S195: 2980 | T195: 391 | U195: 0.559 | V195: 8.55
A196: 1 | B196: 2 | C196: 200 x 120 x 5 | E196: 5 | F196: # | G196: 24.1 | H196: 30.7 | I196: 37 | J196: 21 | K196: 1690 | L196: 762 | M196: 7.4 | N196: 4.98 | O196: 168 | P196: 127 | Q196: 205 | R196: 144 | S196: 1650 | T196: 210 | U196: 0.627 | V196: 26
A197: 1 | B197: 2 | C197: 200 x 120 x 6.3 | E197: 6.3 | G197: 30.1 | H197: 38.3 | I197: 28.7 | J197: 16 | K197: 2070 | L197: 929 | M197: 7.34 | N197: 4.92 | O197: 207 | P197: 155 | Q197: 253 | R197: 177 | S197: 2030 | T197: 255 | U197: 0.624 | V197: 20.8
A198: 1 | B198: 2 | C198: 200 x 120 x 7.1 | E198: 7.1 | F198: # | G198: 33.7 | H198: 42.9 | I198: 25.2 | J198: 13.9 | K198: 2290 | L198: 1030 | M198: 7.3 | N198: 4.89 | O198: 229 | P198: 171 | Q198: 281 | R198: 197 | S198: 2250 | T198: 282 | U198: 0.622 | V198: 18.5
A199: 1 | B199: 2 | C199: 200 x 120 x 8 | E199: 8 | G199: 37.6 | H199: 48 | I199: 22 | J199: 12 | K199: 2530 | L199: 1130 | M199: 7.26 | N199: 4.85 | O199: 253 | P199: 188 | Q199: 313 | R199: 218 | S199: 2500 | T199: 310 | U199: 0.619 | V199: 16.5
A200: 1 | B200: 2 | C200: 200 x 120 x 8.8 | E200: 8.8 | F200: # | G200: 41.1 | H200: 52.4 | I200: 19.7 | J200: 10.6 | K200: 2730 | L200: 1220 | M200: 7.22 | N200: 4.82 | O200: 273 | P200: 203 | Q200: 340 | R200: 237 | S200: 2700 | T200: 334 | U200: 0.617 | V200: 15
A201: 1 | B201: 2 | C201: 200 x 120 x 10 | E201: 10 | G201: 46.3 | H201: 58.9 | I201: 17 | J201: 9 | K201: 3030 | L201: 1340 | M201: 7.17 | N201: 4.76 | O201: 303 | P201: 223 | Q201: 379 | R201: 263 | S201: 3000 | T201: 367 | U201: 0.614 | V201: 13.3
A202: 1 | B202: 2 | C202: 200 x 120 x 12.5 | E202: 12.5 | F202: # | G202: 56.6 | H202: 72.1 | I202: 13 | J202: 6.6 | K202: 3580 | L202: 1560 | M202: 7.04 | N202: 4.66 | O202: 358 | P202: 260 | Q202: 455 | R202: 314 | S202: 3570 | T202: 428 | U202: 0.608 | V202: 10.8
A203: 1 | B203: 2 | C203: 200 x 120 x 14.2 | E203: 14.2 | F203: # | G203: 63.3 | H203: 80.7 | I203: 11.1 | J203: 5.45 | K203: 3910 | L203: 1690 | M203: 6.96 | N203: 4.58 | O203: 391 | P203: 282 | Q203: 503 | R203: 346 | S203: 3920 | T203: 464 | U203: 0.603 | V203: 9.53
A204: 1 | B204: 2 | C204: 200 x 120 x 16 | E204: 16 | F204: # | G204: 70.2 | H204: 89.4 | I204: 9.5 | J204: 4.5 | K204: 4220 | L204: 1810 | M204: 6.87 | N204: 4.5 | O204: 422 | P204: 302 | Q204: 550 | R204: 377 | S204: 4250 | T204: 497 | U204: 0.599 | V204: 8.51
A205: 1 | B205: 2 | C205: 200 x 150 x 5 | E205: 5 | F205: # | G205: 26.5 | H205: 33.7 | I205: 37 | J205: 27 | K205: 1970 | L205: 1270 | M205: 7.64 | N205: 6.12 | O205: 197 | P205: 169 | Q205: 234 | R205: 192 | S205: 2390 | T205: 267 | U205: 0.687 | V205: 26
A206: 1 | B206: 2 | C206: 200 x 150 x 6.3 | E206: 6.3 | F206: # | G206: 33 | H206: 42.1 | I206: 28.7 | J206: 20.8 | K206: 2420 | L206: 1550 | M206: 7.58 | N206: 6.07 | O206: 242 | P206: 207 | Q206: 289 | R206: 237 | S206: 2950 | T206: 326 | U206: 0.684 | V206: 20.7
A207: 1 | B207: 2 | C207: 200 x 150 x 7.1 | E207: 7.1 | F207: # | G207: 37 | H207: 47.1 | I207: 25.2 | J207: 18.1 | K207: 2690 | L207: 1720 | M207: 7.55 | N207: 6.03 | O207: 268 | P207: 229 | Q207: 322 | R207: 264 | S207: 3280 | T207: 361 | U207: 0.682 | V207: 18.4
A208: 1 | B208: 2 | C208: 200 x 150 x 8 | E208: 8 | G208: 41.4 | H208: 52.8 | I208: 22 | J208: 15.8 | K208: 2970 | L208: 1890 | M208: 7.5 | N208: 5.99 | O208: 297 | P208: 253 | Q208: 359 | R208: 294 | S208: 3640 | T208: 398 | U208: 0.679 | V208: 16.4
A209: 1 | B209: 2 | C209: 200 x 150 x 8.8 | E209: 8.8 | F209: # | G209: 45.3 | H209: 57.7 | I209: 19.7 | J209: 14 | K209: 3220 | L209: 2050 | M209: 7.47 | N209: 5.96 | O209: 322 | P209: 273 | Q209: 390 | R209: 319 | S209: 3960 | T209: 430 | U209: 0.677 | V209: 15
A210: 1 | B210: 2 | C210: 200 x 150 x 10 | E210: 10 | G210: 51 | H210: 64.9 | I210: 17 | J210: 12 | K210: 3570 | L210: 2260 | M210: 7.41 | N210: 5.91 | O210: 357 | P210: 302 | Q210: 436 | R210: 356 | S210: 4410 | T210: 475 | U210: 0.674 | V210: 13.2
A211: 1 | B211: 2 | C211: 200 x 150 x 12.5 | E211: 12.5 | F211: # | G211: 62.5 | H211: 79.6 | I211: 13 | J211: 9 | K211: 4240 | L211: 2670 | M211: 7.3 | N211: 5.8 | O211: 424 | P211: 356 | Q211: 525 | R211: 428 | S211: 5290 | T211: 559 | U211: 0.668 | V211: 10.7
... 977 more rows

Sheet from author
B1: Version: 1.0. - FREE LITE VERSION | G1: © 2016 Damian Janicki
C3: For latest updates and news visit: | G3: Contact me at:
C4: www.YourSpreadsheets.co.uk | G4: info@yourspreadsheets.co.uk
C7: General information: Note: This spreadsheet contains macros.
C13: The Author takes no liability for use of this spreadsheet and gives no guarantee that it is error free. In no event shall the Author be responsible for any special, incidental or consequential damages whatsoever arising from the use of this spreadsheet, even if the Author has been advised of the possibility of such damage. This spreadsheet is a freeware and can be distributed freely but only in its original form. Reverse-engineering, decompiling or disassembling of this spreadsheet is not allowable. By using this spreadsheet you understand and agree with the above terms and conditions. You also acknowledge that you do not become the owner of this spreadsheet. Damian Janicki
C34: This is a Free Lite Version. The full version of the spreadsheet allows to: - Input your company information, change logo and change header information - Change applied horizontal loads for two bottom storey - Change height of two bottom storey
C41: This spreadsheet is based on Eurocode 1993-1-1 (2005) + UK N.A. Changelog: 2016.08.31 - v.1.0. - official release of the spreadsheet.
